Workbook

Sheet INGRESO DE DATOS
O2: 24 years | P2: FALSE
O4: Descuento 24 años (por edad)
O5: age | P5: Discount (%) | Q5: Parameter | S5: Type | T5: Nuevo Negocio | V5: Región | W5: 2
O6: 24 | P6: 35 | Q6: =1-P6/100 -> 0.65 | T6: Renovación | W6: 3
O7: 25 | P7: 30 | Q7: =1-P7/100 -> 0.7 | T7: Renovación: Octubre 2020-Agosto 2021 | W7: 4
O8: 26 | P8: 25 | Q8: 0.75 | W8: 5
O9: 27 | P9: 20 | Q9: 0.8 | W9: 6
O10: 28 | P10: 15 | Q10: 0.85 | W10: 8
O11: 29 | P11: 6 | Q11: 0.94 | W11: 9
O12: All ages | P12: 0 | Q12: 1 | W12: DR
S13: Type selected | T13: 2 | V13: Selección | W13: 8
V14: Región | W14: REPÚBLICA DOMINICANA
O19: Descuento de 24 años: | P19: =IF(P2,_xlfn.SWITCH(C40,O6,Q6,O7,Q7,O8,Q8,O9,Q9,O10,Q10,O11,Q11,Q12),Q12) -> 1 | R19: IVA: 12% | S19: =12/100 -> 0.12 | T19: =S19+1 -> 1.12
O24: Descuento por variante de coaseguro | P24: N/A
O30: Descuento si es nuevo negocio (ENTRADA MANUAL)
O32: New business discount y Ventas a partir de 1 de agosto 2021 | V32: Período 1/10/2020 a 1/8/2021
P33: Essential | Q33: Unique-Deductible: 0 | R33: Unique | S33: Elite | W33: Essential | X33: Unique-Deductible: 0 | Y33: Unique | Z33: Elite
O34: 0 | P34: 0 | Q34: 0.4 | R34: 0.4 | S34: 0.2 | T34: 0 | V34: 0 | W34: 0 | X34: 0.2 | Y34: 0.2 | Z34: 0 | AA34: 0
Q35: 0.45 | R35: 0.45 | X35: 0.2 | Y35: 0.2
A36: Nombre del Asegurado principal: | C36: John Doe | Q36: 0.5 | R36: 0.5 | X36: 0.2 | Y36: 0.2
Q37: 0.5 | R37: 0.5 | X37: 0.2 | Y37: 0.2
A38: Número de adultos en la póliza: | C38: 1 | D38: Número de hijos en la póliza: | F38: 0 | R38: 0.5 | Y38: 0.2
A40: Edad del titular: | C40: 47 | E40: Edad de cónyuge: | F40: 46
V43: Período Antes de 1/1/2020
W44: Essential | X44: Unique-Deductible: 0 | Y44: Unique | Z44: Elite
A45: Nombre de la Agencia : | C45: Agencia | V45: 0 | W45: 0 | X45: 0 | Y45: 0 | Z45: 0 | AA45: 0
X46: 0 | Y46: 0
X47: 0 | Y47: 0
X48: 0 | Y48: 0
O49: Descuento combinado 24 años + Nuevo Negocio o Roneovaciones | Y49: 0
O52: New business discount
P53: Essential | Q53: Unique-Deductible: 0 | R53: Unique | S53: Elite
O54: =1*$P$19 -> 1 | P54: =IF($T$13=1,(1-P34)*$P$19,IF($T$13=2,1*$P$19,(1-W34)*$P$19)) -> 1 | Q54: =IF($T$13=1,(1-Q34)*$P$19,IF($T$13=2,1*$P$19,(1-X34)*$P$19)) -> 1 | R54: 1 | S54: 1 | T54: =IF($T$13=1,(1-T34)*$P$19,IF($T$13=2,1*$P$19,(1-AA34)*$P$19)) -> 1
Q55: 1 | R55: 1
Q56: 1 | R56: 1
Q57: 1 | R57: 1
R58: 1
O69: DISCOUNT PERU 2020
O71: EXCLUSIVE CARE
O72: 0.51
O74: PRIVILEGE CARE
O75: 0.51
O76: ADVANTAGE CARE
O78: 0.47
O80: SECURE CARE
O81: 0.54
O83: ESSENTIAL CARE
O84: 0.54

Sheet Bupa Essential Care
M1: RESUMEN DE BENEFICIOS | U1: RESUMEN DE BENEFICIOS
G2: TRUE | H2: FALSE
A5: Cotización de Seguro Médico Internacional Bupa Essential Care Tarifas en US$ | Validas: 1 de enero de 2024 | J5: REGIÓN
J7: =IF('INGRESO DE DATOS'!W14="Guatemala","GUATEMALA",'INGRESO DE DATOS'!W14) -> REPÚBLICA DOMINICANA
A13: Nombre del asegurado principal: | G13: =+'INGRESO DE DATOS'!$C$36 -> John Doe
A15: Broker/Agente | G15: =+'INGRESO DE DATOS'!$C$45 -> Agencia
B17: Número de Adultos en la Póliza | G17: =+'INGRESO DE DATOS'!$C$38 -> 1 | H17: Dependientes (menores de 24 años) | J17: =+'INGRESO DE DATOS'!$F$38 -> 0
H18: =IF('INGRESO DE DATOS'!$P$2=TRUE, "Cotización para dependiente de 24 años","") -> 
B19: Edad del Titular | G19: =+'INGRESO DE DATOS'!$C$40 -> 47 | H19: Edad del Cónyuge | J19: =+'INGRESO DE DATOS'!$F$40 -> 46
H21: Fecha de Cotización: | I21: =NOW() -> 2024-01-10T17:02:02.680
J28: No incluye maternidad
F29: DEDUCIBLES | G29: PLAN 1 | H29: PLAN 2 | I29: PLAN 3 | J29: PLAN 4 | K29: PLAN 5
F30: Dentro del pais de residencia | G30: $0 | H30: $0 | I30: 500 | J30: 2000 | K30: 10000
F31: Fuera del pais de residencia | G31: 1000 | H31: 3000 | I31: 2000 | J31: 5000 | K31: 10000
F34: TARIFAS ANUALES
F35: Prima de Titular | G35: =VLOOKUP($G$19,Tablas!$A$256:$H$318,3,TRUE) -> 3426 | H35: =VLOOKUP($G$19,Tablas!$A$256:$H$318,4,TRUE) -> 3111 | I35: =VLOOKUP($G$19,Tablas!$A$256:$H$318,5,TRUE) -> 2827 | J35: =VLOOKUP($G$19,Tablas!$A$256:$H$318,6,TRUE) -> 2437 | K35: =VLOOKUP($G$19,Tablas!$A$10:$H$33,8,TRUE) -> 0
F36: Prima de Cónyuge | G36: =IF($G$17=1,0,(VLOOKUP($J$19,Tablas!$A$256:$H$318,3,TRUE))) -> 0 | H36: =IF($G$17=1,0,(VLOOKUP($J$19,Tablas!$A$256:$H$318,4,TRUE))) -> 0 | I36: =IF($G$17=1,0,(VLOOKUP($J$19,Tablas!$A$256:$H$318,5,TRUE))) -> 0 | J36: =IF($G$17=1,0,(VLOOKUP($J$19,Tablas!$A$256:$H$318,6,TRUE))) -> 0 | K36: =IF($G$17=1,0,(VLOOKUP($J$19,Tablas!$A$10:$H$33,8,TRUE))) -> 0
F37: Primas Hijos | G37: =IF($J$17=0,0,(VLOOKUP($J$17,Tablas!$A$319:$H$321,3,TRUE))) -> 0 | H37: =IF($J$17=0,0,(VLOOKUP($J$17,Tablas!$A$319:$H$321,4,TRUE))) -> 0 | I37: =IF($J$17=0,0,(VLOOKUP($J$17,Tablas!$A$319:$H$321,5,TRUE))) -> 0 | J37: =IF($J$17=0,0,(VLOOKUP($J$17,Tablas!$A$319:$H$321,6,TRUE))) -> 0 | K37: =IF($J$17=0,0,(VLOOKUP($J$17,Tablas!$A$34:$H$36,8,TRUE))) -> 0
F38: Rider: Complicación de Maternidad | G38: 0 | H38: 0 | I38: 0 | J38: 0 | K38: 0
F39: TOTAL PRIMA NETA | G39: =SUM(G35:G38) -> 3426 | H39: =SUM(H35:H38) -> 3111 | I39: =SUM(I35:I38) -> 2827 | J39: =SUM(J35:J38) -> 2437 | K39: =SUM(K35:K38) -> 0
F40: Costo Administrativo Anual | G40: 75 | H40: 75 | I40: 75 | J40: 75 | K40: 75
F41: IVA (12%) | G41: 0 | H41: 0 | I41: 0 | J41: 0 | K41: 0
F42: GRAN TOTAL: | G42: =SUM(G39:G41) -> 3501 | H42: =SUM(H39:H41) -> 3186 | I42: 2902 | J42: 2512 | K42: 75
F46: TARIFAS SEMESTRALES
F47: Prima de Titular | G47: =VLOOKUP($G$19,Tablas!$A$330:$H$392,3,TRUE) -> 1815.78 | H47: =VLOOKUP($G$19,Tablas!$A$330:$H$392,4,TRUE) -> 1648.83 | I47: =VLOOKUP($G$19,Tablas!$A$330:$H$392,5,TRUE) -> 1498.31 | J47: =VLOOKUP($G$19,Tablas!$A$330:$H$392,6,TRUE) -> 1291.61 | K47: =VLOOKUP($G$19,Tablas!$A$45:$H$68,8,TRUE) -> 0
F48: Prima de Cónyuge | G48: =IF($G$17=1,0,(VLOOKUP($J$19,Tablas!$A$330:$H$392,3,TRUE))) -> 0 | H48: =IF($G$17=1,0,(VLOOKUP($J$19,Tablas!$A$330:$H$392,4,TRUE))) -> 0 | I48: =IF($G$17=1,0,(VLOOKUP($J$19,Tablas!$A$330:$H$392,5,TRUE))) -> 0 | J48: =IF($G$17=1,0,(VLOOKUP($J$19,Tablas!$A$330:$H$392,6,TRUE))) -> 0 | K48: =IF($G$17=1,0,(VLOOKUP($J$19,Tablas!$A$45:$H$68,8,TRUE))) -> 0
F49: Primas Hijos | G49: =IF($J$17=0,0,(VLOOKUP($J$17,Tablas!$A$393:$H$395,3,TRUE))) -> 0 | H49: =IF($J$17=0,0,(VLOOKUP($J$17,Tablas!$A$393:$H$395,4,TRUE))) -> 0 | I49: =IF($J$17=0,0,(VLOOKUP($J$17,Tablas!$A$393:$H$395,5,TRUE))) -> 0 | J49: =IF($J$17=0,0,(VLOOKUP($J$17,Tablas!$A$393:$H$395,6,TRUE))) -> 0 | K49: =IF($J$17=0,0,(VLOOKUP($J$17,Tablas!$A$69:$H$71,8,TRUE))) -> 0
F50: Rider: Complicación de Maternidad | G50: 0 | H50: 0 | I50: 0 | J50: 0 | K50: 0
F51: TOTAL PRIMA NETA | G51: =SUM(G47:G50) -> 1815.78 | H51: =SUM(H47:H50) -> 1648.83 | I51: =SUM(I47:I50) -> 1498.31 | J51: =SUM(J47:J50) -> 1291.61 | K51: =SUM(K47:K50) -> 0
F52: Costo Administrativo Anual | G52: 75 | H52: 75 | I52: 75 | J52: 75 | K52: 75
F53: IVA (12%) | G53: 0 | H53: 0 | I53: 0 | J53: 0 | K53: 0
F54: TOTAL (1ra Cuota) | G54: =SUM(G51:G53) -> 1890.78 | H54: =SUM(H51:H53) -> 1723.83 | I54: 1573.31 | J54: 1366.61 | K54: 75
F55: TOTAL (2da Cuota) | G55: =G54-G52 -> 1815.78 | H55: =H54-H52 -> 1648.83 | I55: 1498.31 | J55: 1291.61 | K55: =K54-K52*'INGRESO DE DATOS'!$T$19 -> -9
F56: GRAN TOTAL | G56: =SUM(G54:G55) -> 3706.56 | H56: =SUM(H54:H55) -> 3372.66 | I56: 3071.62 | J56: 2658.22 | K56: 66
F59: TARIFAS TRIMESTRALES
F60: Prima de Titular | G60: =VLOOKUP($G$19,Tablas!$A$405:$H$467,3,TRUE) -> 942.15 | H60: =VLOOKUP($G$19,Tablas!$A$405:$H$467,4,TRUE) -> 855.525 | I60: =VLOOKUP($G$19,Tablas!$A$405:$H$467,5,TRUE) -> 777.425 | J60: =VLOOKUP($G$19,Tablas!$A$405:$H$467,6,TRUE) -> 670.175 | K60: =VLOOKUP($G$19,Tablas!$A$79:$H$102,8,TRUE) -> 0
F61: Prima de Cónyuge | G61: =IF($G$17=1,0,(VLOOKUP($J$19,Tablas!$A$405:$H$467,3,TRUE))) -> 0 | H61: =IF($G$17=1,0,(VLOOKUP($J$19,Tablas!$A$405:$H$467,4,TRUE))) -> 0 | I61: =IF($G$17=1,0,(VLOOKUP($J$19,Tablas!$A$405:$H$467,5,TRUE))) -> 0 | J61: =IF($G$17=1,0,(VLOOKUP($J$19,Tablas!$A$405:$H$467,6,TRUE))) -> 0 | K61: =IF($G$17=1,0,(VLOOKUP($J$19,Tablas!$A$79:$H$102,8,TRUE))) -> 0
F62: Primas Hijos | G62: =IF($J$17=0,0,(VLOOKUP($J$17,Tablas!$A$468:$H$470,3,TRUE))) -> 0 | H62: =IF($J$17=0,0,(VLOOKUP($J$17,Tablas!$A$468:$H$470,4,TRUE))) -> 0 | I62: =IF($J$17=0,0,(VLOOKUP($J$17,Tablas!$A$468:$H$470,5,TRUE))) -> 0 | J62: =IF($J$17=0,0,(VLOOKUP($J$17,Tablas!$A$468:$H$470,6,TRUE))) -> 0 | K62: =IF($J$17=0,0,(VLOOKUP($J$17,Tablas!$A$103:$H$105,8,TRUE))) -> 0
F63: Rider: Complicación de Maternidad | G63: 0 | H63: 0 | I63: 0 | J63: 0 | K63: 0
F64: TOTAL PRIMA NETA | G64: =SUM(G60:G63) -> 942.15 | H64: =SUM(H60:H63) -> 855.525 | I64: =SUM(I60:I63) -> 777.425 | J64: =SUM(J60:J63) -> 670.175 | K64: =SUM(K60:K63) -> 0
F65: Costo Administrativo Anual | G65: 75 | H65: 75 | I65: 75 | J65: 75 | K65: 75
F66: IVA (12%) | G66: 0 | H66: 0 | I66: 0 | J66: 0 | K66: 0
F67: TOTAL (1ra Cuota) | G67: =SUM(G64:G66) -> 1017.15 | H67: =SUM(H64:H66) -> 930.525 | I67: 852.425 | J67: 745.175 | K67: 75
F68: TOTAL (2da a 4ta Cuota) | G68: =G67-G65 -> 942.15 | H68: =H67-H65 -> 855.525 | I68: 777.425 | J68: 670.175 | K68: =K67-K65*'INGRESO DE DATOS'!$T$19 -> -9
F69: GRAN TOTAL | G69: =G67+G68*3 -> 3843.6 | H69: =H67+H68*3 -> 3497.1 | I69: 3184.7 | J69: 2755.7 | K69: =K67+K68*2 -> 57
F72: TARIFAS MENSUALES
F73: Prima de Titular | G73: =VLOOKUP($G$19,Tablas!$A$480:$G$542,3,TRUE) -> 319.7599989 | H73: =VLOOKUP($G$19,Tablas!$A$480:$G$542,4,TRUE) -> 290.359999 | I73: =VLOOKUP($G$19,Tablas!$A$480:$G$542,5,TRUE) -> 263.8533324 | J73: =VLOOKUP($G$19,Tablas!$A$480:$G$542,6,TRUE) -> 227.4533325 | K73: =VLOOKUP($G$19,Tablas!$A$112:$H$135,8,TRUE) -> 0
F74: Prima de Cónyuge | G74: =IF($G$17=1,0,(VLOOKUP($J$19,Tablas!$A$480:$G$542,3,TRUE))) -> 0 | H74: =IF($G$17=1,0,(VLOOKUP($J$19,Tablas!$A$480:$G$542,4,TRUE))) -> 0 | I74: =IF($G$17=1,0,(VLOOKUP($J$19,Tablas!$A$480:$G$542,5,TRUE))) -> 0 | J74: =IF($G$17=1,0,(VLOOKUP($J$19,Tablas!$A$480:$G$542,6,TRUE))) -> 0 | K74: =IF($G$17=1,0,(VLOOKUP($J$19,Tablas!$A$112:$H$135,4,TRUE))) -> 0
F75: Primas Hijos | G75: =IF($J$17=0,0,(VLOOKUP($J$17,Tablas!$A$543:$G$545,3,TRUE))) -> 0 | H75: =IF($J$17=0,0,(VLOOKUP($J$17,Tablas!$A$543:$G$545,4,TRUE))) -> 0 | I75: =IF($J$17=0,0,(VLOOKUP($J$17,Tablas!$A$543:$G$545,5,TRUE))) -> 0 | J75: =IF($J$17=0,0,(VLOOKUP($J$17,Tablas!$A$543:$G$545,6,TRUE))) -> 0 | K75: =IF($J$17=0,0,(VLOOKUP($J$17,Tablas!$A$136:$H$138,8,TRUE))) -> 0
F76: Rider: Complicación de Maternidad | G76: 0 | H76: 0 | I76: 0 | J76: 0 | K76: 0
F77: TOTAL PRIMA NETA | G77: =SUM(G73:G76) -> 319.7599989 | H77: =SUM(H73:H76) -> 290.359999 | I77: =SUM(I73:I76) -> 263.8533324 | J77: =SUM(J73:J76) -> 227.4533325 | K77: =SUM(K73:K76) -> 0
F78: Costo Administrativo Anual | G78: 75 | H78: 75 | I78: 75 | J78: 75 | K78: 75
F79: IVA (12%) | G79: 0 | H79: 0 | I79: 0 | J79: 0 | K79: 0
F80: TOTAL (1ra Cuota) | G80: =SUM(G77:G79) -> 394.7599989 | H80: =SUM(H77:H79) -> 365.359999 | I80: 338.8533324 | J80: 302.4533325 | K80: 75
F81: TOTAL (2da a Cuota 12) | G81: =G80-G78 -> 319.7599989 | H81: =H80-H78 -> 290.359999 | I81: 263.8533324 | J81: 227.4533325 | K81: =K80-K78*'INGRESO DE DATOS'!$T$19 -> -9
F82: GRAN TOTAL | G82: =G80+G81*11 -> 3912.119986 | H82: =H80+H81*11 -> 3559.319988 | I82: 3241.239989 | J82: 2804.43999 | K82: =K80+K81*2 -> 57
F86: Este presupuesto solamente tiene carácter informativo y en ningún momento expresa compromiso legal para suministrarle cobertura de seguro. La emisión de una póliza de seguro Bupa está sujeta a todas las evaluaciones de riesgo por parte de Bupa y a la recepción de todos los pagos de prima requeridos.

Sheet Advantage (LA) (hidden)
A10: Cotización de Seguro Médico Internacional - Bupa ADVANTAGE Care (cobertura solo Latinoamérica)
A12: Bupa Advantage Care (cobertura solo en Latinoamérica) | H12: =+'INGRESO DE DATOS'!$C$36 -> John Doe
A13: Cobertura Máxima anual | C13: US $ 3,500,000
A14: Cobertura Geografica | C14: Limitada a Latinoamérica excluyendo México | H14: =+'INGRESO DE DATOS'!$C$45 -> Agencia
A15: Condiciones médicas cubiertas | C15: Todas las condiciones médicas
A16: Redes de proveedores | C16: Red de Proveedores "Bupa Advantage" | J16: =+'INGRESO DE DATOS'!$C$38 -> 1 | M16: =+'INGRESO DE DATOS'!$C$40 -> 47
A17: Opciones fuera de la Red | C17: NO, solo en casos de emergencia | F17: FECHA DE COTIZACION :
A18: Requiere preautorización | C18: SI, 30% de penalización por omitir prenotificación | F18: =NOW() -> 2024-01-10T17:02:02.680 | J18: =+'INGRESO DE DATOS'!$F$38 -> 0 | M18: =+'INGRESO DE DATOS'!$F$40 -> 46
A20: Número máximo de días de hospitalización | C20: Ilimitado | I20: TRUE | K20: COMPLICACIONES DE MATERNIDAD
A21: Habitación y alimentación | C21: 100% dentro de Red Bupa
C22: "UCR" para L.A. en emergencias fuera de Red Bupa | I22: TRUE | K22: TRASPLANTE DE ORGANOS
A23: Cuidados Intensivos | C23: 100% dentro de Red Bupa
C24: "UCR" para L.A. en emergencias fuera de Red Bupa
A25: Cobertura de Maternidad | C25: $5,000 (Excepto planes 4,5, y 6) | F25: Deducibles | H25: PLAN 1 | I25: PLAN 2 | J25: PLAN 3 | K25: PLAN 4 | L25: PLAN 5 | M25: PLAN 6
A26: Cobertura Provisional de Recién Nacido | C26: $30,000 por los primeros 90 días | F26: Dentro del pais de residencia | H26: n/a | I26: 1000 | J26: 2000 | K26: 5000 | L26: 10000 | M26: 20000
A27: Cuidado del Recién Nacido saludable | C27: Ya incluída dentro del beneficio de Maternidad | F27: Fuera del pais de residencia | H27: n/a | I27: 2000 | J27: 3000 | K27: 5000 | L27: 10000 | M27: 20000
A28: Cobertura de Complicaciones de Maternidad | C28: Disponible a través de cobertura opcional adicional
A29: Trasplante de Organos | C29: $1,000,000 de por vida, por diagnóstico
A30: Condiciones congénitas y hereditarias | C30: <18 años $300,000 de por vida; >=18 al 100% | F30: Tarifas Anuales
A31: Coberturas opcionales (Riders) | C31: Complicaciones de Maternidad por $500,000 | F31: Prima de Titular : | H31: n/a | I31: =VLOOKUP($M$16,Tablas!#REF!,4,TRUE) ->  | J31: =VLOOKUP($M$16,Tablas!#REF!,5,TRUE) ->  | K31: =VLOOKUP($M$16,Tablas!#REF!,6,TRUE) ->  | L31: =VLOOKUP($M$16,Tablas!#REF!,7,TRUE) ->  | M31: =VLOOKUP($M$16,Tablas!#REF!,8,TRUE) -> 
C32: Trasplante de órganos por $ 300,000 adicionales | F32: Prima de Cónyuge | H32: n/a | I32: =IF($J$16=1,0,(VLOOKUP($M$18,Tablas!#REF!,4,TRUE))) -> 0 | J32: =IF($J$16=1,0,(VLOOKUP($M$18,Tablas!#REF!,5,TRUE))) -> 0 | K32: =IF($J$16=1,0,(VLOOKUP($M$18,Tablas!#REF!,6,TRUE))) -> 0 | L32: =IF($J$16=1,0,(VLOOKUP($M$18,Tablas!#REF!,7,TRUE))) -> 0 | M32: =IF($J$16=1,0,(VLOOKUP($M$18,Tablas!#REF!,8,TRUE))) -> 0
A33: Acompañamiento de menores hospitalizados | C33: $300 por día | F33: Primas Hijos : | H33: n/a | I33: =IF($J$18=0,0,(VLOOKUP($J$18,Tablas!#REF!,4,TRUE))) -> 0 | J33: =IF($J$18=0,0,(VLOOKUP($J$18,Tablas!#REF!,5,TRUE))) -> 0 | K33: =IF($J$18=0,0,(VLOOKUP($J$18,Tablas!#REF!,6,TRUE))) -> 0 | L33: =IF($J$18=0,0,(VLOOKUP($J$18,Tablas!#REF!,7,TRUE))) -> 0 | M33: =IF($J$18=0,0,(VLOOKUP($J$18,Tablas!#REF!,8,TRUE))) -> 0
A34: Ambulancia aérea | C34: $100,000 por año y ticket aéreo de retorno | F34: Prima Rider Complic. Maternidad | H34: n/a | I34: =+IF($I$20=FALSE,0,Tablas!#REF!) ->  | J34: =+IF($I$20=FALSE,0,Tablas!#REF!) ->  | K34: =+IF($I$20=FALSE,0,Tablas!#REF!) ->  | L34: =+IF($I$20=FALSE,0,Tablas!#REF!) ->  | M34: =+IF($I$20=FALSE,0,Tablas!#REF!) -> 
A35: Repatriación restos mortales | C35: 1 | F35: Prima Rider Trasplante Organos | H35: n/a | I35: =IF($I$22=FALSE,0,Tablas!#REF!) ->  | J35: =IF($I$22=FALSE,0,Tablas!#REF!) ->  | K35: =IF($I$22=FALSE,0,Tablas!#REF!) ->  | L35: =IF($I$22=FALSE,0,Tablas!#REF!) ->  | M35: =IF($I$22=FALSE,0,Tablas!#REF!) -> 
A36: Medicamentos por receta | C36: $6,000 por Asegurado, por año póliza | F36: TOTAL PRIMA NETA : | H36: n/a | I36: =SUM(I31:I35) -> 
A37: Almacenamiento de sangre de cordon umbilical | C37: $500 (Excepto planes 4,5, y 6) | F37: Costo Administrativo Anual : | H37: n/a | I37: 75 | J37: 75 | K37: 75 | L37: 75 | M37: 75
F38: GRAN TOTAL : | H38: n/a | I38: =SUM(I36:I37) ->  | J38: =SUM(J36:J37) ->  | K38: =SUM(K36:K37) ->  | L38: =SUM(L36:L37) ->  | M38: =SUM(M36:M37) -> 
A39: Atención médica en el hogar | C39: 100% de usual/acostumbrado y razonable
A40: Rehabilitación | C40: 100% de usual/acostumbrado y razonable | F40: Tarifas Semestrales
A41: Residencia y cuidados paliativos | C41: 100% de usual/acostumbrado y razonable | F41: Prima de Titular : | H41: n/a | I41: =VLOOKUP($M$16,Tablas!#REF!,4,TRUE) ->  | J41: =VLOOKUP($M$16,Tablas!#REF!,5,TRUE) ->  | K41: =VLOOKUP($M$16,Tablas!#REF!,6,TRUE) ->  | L41: =VLOOKUP($M$16,Tablas!#REF!,7,TRUE) ->  | M41: =VLOOKUP($M$16,Tablas!#REF!,8,TRUE) -> 
A42: Cobertura de actividades peligrosas | C42: 1 | F42: Prima de Cónyuge | H42: n/a | I42: =IF($J$16=1,0,(VLOOKUP($M$18,Tablas!#REF!,4,TRUE))) -> 0 | J42: =IF($J$16=1,0,(VLOOKUP($M$18,Tablas!#REF!,5,TRUE))) -> 0 | K42: =IF($J$16=1,0,(VLOOKUP($M$18,Tablas!#REF!,6,TRUE))) -> 0 | L42: =IF($J$16=1,0,(VLOOKUP($M$18,Tablas!#REF!,7,TRUE))) -> 0 | M42: =IF($J$16=1,0,(VLOOKUP($M$18,Tablas!#REF!,8,TRUE))) -> 0
A43: Chequeos generales de rutina | C43: Hasta US$150 por año póliza.Sin deducible | F43: Primas Hijos : | H43: n/a | I43: =IF($J$18=0,0,(VLOOKUP($J$18,Tablas!#REF!,4,TRUE))) -> 0 | J43: =IF($J$18=0,0,(VLOOKUP($J$18,Tablas!#REF!,5,TRUE))) -> 0 | K43: =IF($J$18=0,0,(VLOOKUP($J$18,Tablas!#REF!,6,TRUE))) -> 0 | L43: =IF($J$18=0,0,(VLOOKUP($J$18,Tablas!#REF!,7,TRUE))) -> 0 | M43: =IF($J$18=0,0,(VLOOKUP($J$18,Tablas!#REF!,8,TRUE))) -> 0
A44: Cobertura de VIH, SIDA, CAS | C44: Solo como efecto de transfusión de sangre | F44: Prima Rider Complic. Maternidad | H44: n/a | I44: =+IF($I$20=FALSE,0,Tablas!#REF!) ->  | J44: =+IF($I$20=FALSE,0,Tablas!#REF!) ->  | K44: =+IF($I$20=FALSE,0,Tablas!#REF!) ->  | L44: =+IF($I$20=FALSE,0,Tablas!#REF!) ->  | M44: =+IF($I$20=FALSE,0,Tablas!#REF!) -> 
A45: Cobertura de brazos y piernas artificiales | C45: $30,000 por año y hasta $120,000 de por vida | F45: Prima Rider Trasplante Organos | H45: n/a | I45: =IF($I$22=FALSE,0,Tablas!#REF!) ->  | J45: =IF($I$22=FALSE,0,Tablas!#REF!) ->  | K45: =IF($I$22=FALSE,0,Tablas!#REF!) ->  | L45: =IF($I$22=FALSE,0,Tablas!#REF!) ->  | M45: =IF($I$22=FALSE,0,Tablas!#REF!) -> 
A46: Cobertura extendida para dependientes en caso de muerte de asegurado principal | C46: 2 años sin costo | F46: TOTAL PRIMA NETA : | H46: n/a | I46: =SUM(I41:I45) -> 
F47: Costo Administrativo Anual : | H47: n/a | I47: 75 | J47: 75 | K47: 75 | L47: 75 | M47: 75
F48: GRAN TOTAL (1ra Cuota) : | H48: n/a | I48: =SUM(I46:I47) ->  | J48: =SUM(J46:J47) ->  | K48: =SUM(K46:K47) ->  | L48: =SUM(L46:L47) ->  | M48: =SUM(M46:M47) -> 
F49: GRAN TOTAL (2da Cuota) : | H49: n/a | I49: =I46 ->  | J49: =J46 -> 
F50: Tarifas en US $ - Válidas desde 01 Ene 2013

Sheet Bupa Elite Care
B1: FALSE | C1: FALSE | H1: RESUJeN DE BENEFICIOS
B2: FALSE
A5: Cotización de Seguro Médico Internacional Bupa Elite Tarifas en US$ | Validas: 1 de enero de 2024 | F5: REGIÓN
F7: =IF('INGRESO DE DATOS'!W14="Guatemala","GUATEMALA",'INGRESO DE DATOS'!W14) -> REPÚBLICA DOMINICANA
A13: Nombre del asegurado principal | B13: =+'INGRESO DE DATOS'!$C$36 -> John Doe
A15: Broker/Agente | B15: =+'INGRESO DE DATOS'!$C$45 -> Agencia
A17: Número de Adultos en la Póliza | B17: =+'INGRESO DE DATOS'!$C$38 -> 1 | D17: Dependientes (menores de 24 años) | F17: =+'INGRESO DE DATOS'!$F$38 -> 0
D18: =IF('INGRESO DE DATOS'!$P$2=TRUE, "Cotización para dependiente de 24 años","") -> 
A19: Edad del Titular | B19: =+'INGRESO DE DATOS'!$C$40 -> 47 | D19: Edad del Cónyuge | F19: =+'INGRESO DE DATOS'!$F$40 -> 46
E21: Fecha de Cotización: | F21: =NOW() -> 2024-01-10T17:02:02.680
E24: No incluyen maternidad
A25: DEDUCIBLES | B25: PLAN 1 | C25: PLAN 2 | D25: PLAN 3 | E25: PLAN 4 | F25: PLAN 5
A26: Dentro del pais de residencia | B26: 250 | C26: 1000 | D26: 2000 | E26: 5000 | F26: 10000
A27: Fuera del pais de residencia | B27: 1000 | C27: 2000 | D27: 3000 | E27: 5000 | F27: 10000
A30: TARIFAS ANUALES
A31: Prima de Titular | B31: =VLOOKUP($B$19,Tablas!$A$558:$H$620,4,TRUE) -> 15868 | C31: =VLOOKUP($B$19,Tablas!$A$558:$H$620,5,TRUE) -> 9835 | D31: =VLOOKUP($B$19,Tablas!$A$558:$H$620,6,TRUE) -> 7914 | E31: =VLOOKUP($B$19,Tablas!$A$558:$H$620,7,TRUE) -> 6309 | F31: =VLOOKUP($B$19,Tablas!$A$558:$H$620,8,TRUE) -> 4814
A32: Prima de Cónyuge | B32: =IF($B$17=1,0,(VLOOKUP($F$19,Tablas!$A$558:$H$620,4,TRUE))) -> 0 | C32: =IF($B$17=1,0,(VLOOKUP($F$19,Tablas!$A$558:$H$620,5,TRUE))) -> 0 | D32: =IF($B$17=1,0,(VLOOKUP($F$19,Tablas!$A$558:$H$620,6,TRUE))) -> 0 | E32: =IF($B$17=1,0,(VLOOKUP($F$19,Tablas!$A$558:$H$620,7,TRUE))) -> 0 | F32: =IF($B$17=1,0,(VLOOKUP($F$19,Tablas!$A$558:$H$620,8,TRUE))) -> 0
A33: Primas Hijos | B33: =IF($F$17=0,0,(VLOOKUP($F$17,Tablas!$A$621:$H$623,4,TRUE))) -> 0 | C33: =IF($F$17=0,0,(VLOOKUP($F$17,Tablas!$A$621:$H$623,5,TRUE))) -> 0 | D33: =IF($F$17=0,0,(VLOOKUP($F$17,Tablas!$A$621:$H$623,6,TRUE))) -> 0 | E33: =IF($F$17=0,0,(VLOOKUP($F$17,Tablas!$A$621:$H$623,7,TRUE))) -> 0 | F33: =IF($F$17=0,0,(VLOOKUP($F$17,Tablas!$A$621:$H$623,8,TRUE))) -> 0
A34: Rider: Complicaciones de Maternidad | B34: =+IF($B$1=FALSE,0,Tablas!D624) -> 0 | C34: =+IF($B$1=FALSE,0,Tablas!E624) -> 0 | D34: =+IF($B$1=FALSE,0,Tablas!F624) -> 0 | E34: =+IF($B$1=FALSE,0,Tablas!G624) -> 0 | F34: =+IF($B$1=FALSE,0,Tablas!H624) -> 0
A35: Rider: Trasplante Organos | B35: =IF($C$1=FALSE,0,Tablas!D625) -> 0 | C35: =IF($C$1=FALSE,0,Tablas!E625) -> 0 | D35: =IF($C$1=FALSE,0,Tablas!F625) -> 0 | E35: =IF($C$1=FALSE,0,Tablas!G625) -> 0 | F35: =IF($C$1=FALSE,0,Tablas!H625) -> 0
A36: Rider: Eliminación de Deducible | B36: =IF($B$2=FALSE,0,Tablas!D626) -> 0 | C36: =IF($B$2=FALSE,0,Tablas!E626) -> 0 | D36: =IF($B$2=FALSE,0,Tablas!F626) -> 0 | E36: =IF($B$2=FALSE,0,Tablas!G626) -> 0 | F36: =IF($B$2=FALSE,0,Tablas!H626) -> 0
A37: TOTAL PRIMA NETA | B37: =SUM(B31:B36) -> 15868 | C37: 9835 | D37: 7914 | E37: 6309 | F37: 4814
A38: Costo Administrativo Annual | B38: 75 | C38: 75 | D38: 75 | E38: 75 | F38: 75
A39: IVA (12%) | B39: 0 | C39: 0 | D39: 0 | E39: 0 | F39: 0
A40: GRAN TOTAL : | B40: =SUM(B37:B39) -> 15943 | C40: =SUM(C37:C39) -> 9910 | D40: 7989 | E40: 6384 | F40: 4889
A43: TARIFAS SEMESTRALES
A44: Prima de Titular | B44: =VLOOKUP($B$19,Tablas!$A$632:$H$694,4,TRUE) -> 8410.04 | C44: =VLOOKUP($B$19,Tablas!$A$632:$H$694,5,TRUE) -> 5212.55 | D44: =VLOOKUP($B$19,Tablas!$A$632:$H$694,6,TRUE) -> 4194.42 | E44: =VLOOKUP($B$19,Tablas!$A$632:$H$694,7,TRUE) -> 3343.77 | F44: =VLOOKUP($B$19,Tablas!$A$632:$H$694,8,TRUE) -> 2551.42
A45: Prima de Cónyuge | B45: =IF($B$17=1,0,(VLOOKUP($F$19,Tablas!$A$632:$H$694,4,TRUE))) -> 0 | C45: =IF($B$17=1,0,(VLOOKUP($F$19,Tablas!$A$632:$H$694,5,TRUE))) -> 0 | D45: =IF($B$17=1,0,(VLOOKUP($F$19,Tablas!$A$632:$H$694,6,TRUE))) -> 0 | E45: =IF($B$17=1,0,(VLOOKUP($F$19,Tablas!$A$632:$H$694,7,TRUE))) -> 0 | F45: =IF($B$17=1,0,(VLOOKUP($F$19,Tablas!$A$632:$H$694,8,TRUE))) -> 0
A46: Primas Hijos | B46: =IF($F$17=0,0,(VLOOKUP($F$17,Tablas!$A$695:$H$697,4,TRUE))) -> 0 | C46: =IF($F$17=0,0,(VLOOKUP($F$17,Tablas!$A$695:$H$697,5,TRUE))) -> 0 | D46: =IF($F$17=0,0,(VLOOKUP($F$17,Tablas!$A$695:$H$697,6,TRUE))) -> 0 | E46: =IF($F$17=0,0,(VLOOKUP($F$17,Tablas!$A$695:$H$697,7,TRUE))) -> 0 | F46: =IF($F$17=0,0,(VLOOKUP($F$17,Tablas!$A$695:$H$697,8,TRUE))) -> 0
A47: Rider: Complicaciones de Maternidad | B47: =+IF($B$1=FALSE,0,Tablas!D698) -> 0 | C47: =+IF($B$1=FALSE,0,Tablas!E698) -> 0 | D47: =+IF($B$1=FALSE,0,Tablas!F698) -> 0 | E47: =+IF($B$1=FALSE,0,Tablas!G698) -> 0 | F47: =+IF($B$1=FALSE,0,Tablas!H698) -> 0
A48: Rider: Trasplante Organos | B48: =IF($C$1=FALSE,0,Tablas!D699) -> 0 | C48: =IF($C$1=FALSE,0,Tablas!E699) -> 0 | D48: =IF($C$1=FALSE,0,Tablas!F699) -> 0 | E48: =IF($C$1=FALSE,0,Tablas!G699) -> 0 | F48: =IF($C$1=FALSE,0,Tablas!H699) -> 0
A49: Rider: Eliminación de Deducible | B49: =IF($B$2=FALSE,0,Tablas!D700) -> 0 | C49: =IF($B$2=FALSE,0,Tablas!E700) -> 0 | D49: =IF($B$2=FALSE,0,Tablas!F700) -> 0 | E49: =IF($B$2=FALSE,0,Tablas!G700) -> 0 | F49: =IF($B$2=FALSE,0,Tablas!H700) -> 0
A50: TOTAL PRIMA NETA | B50: =SUM(B44:B49) -> 8410.04 | C50: 5212.55 | D50: 4194.42 | E50: 3343.77 | F50: 2551.42
A51: Costo Administrativo Anual | B51: 75 | C51: 75 | D51: 75 | E51: 75 | F51: 75
A52: IVA (12%) | B52: 0 | C52: 0 | D52: 0 | E52: 0 | F52: 0
A53: TOTAL (1ra Cuota) | B53: =SUM(B50:B52) -> 8485.04 | C53: =SUM(C50:C52) -> 5287.55 | D53: 4269.42 | E53: 3418.77 | F53: 2626.42
A54: TOTAL (2da Cuota) | B54: =B53-B51 -> 8410.04 | C54: =C53-C51 -> 5212.55 | D54: 4194.42 | E54: 3343.77 | F54: 2551.42
A55: GRAN TOTAL | B55: =SUM(B53:B54) -> 16895.08 | C55: =SUM(C53:C54) -> 10500.1 | D55: 8463.84 | E55: 6762.54 | F55: 5177.84
A58: TARIFAS TRIMESTRALES
A59: Prima de Titular | B59: =VLOOKUP($B$19,Tablas!$A$706:$H$768,4,TRUE) -> 4363.7 | C59: =VLOOKUP($B$19,Tablas!$A$706:$H$768,5,TRUE) -> 2704.625 | D59: =VLOOKUP($B$19,Tablas!$A$706:$H$768,6,TRUE) -> 2176.35 | E59: =VLOOKUP($B$19,Tablas!$A$706:$H$768,7,TRUE) -> 1734.975 | F59: =VLOOKUP($B$19,Tablas!$A$706:$H$768,8,TRUE) -> 1323.85
A60: Prima de Cónyuge | B60: =IF($B$17=1,0,(VLOOKUP($F$19,Tablas!$A$706:$H$768,4,TRUE))) -> 0 | C60: =IF($B$17=1,0,(VLOOKUP($F$19,Tablas!$A$706:$H$768,5,TRUE))) -> 0 | D60: =IF($B$17=1,0,(VLOOKUP($F$19,Tablas!$A$706:$H$768,5,TRUE))) -> 0 | E60: =IF($B$17=1,0,(VLOOKUP($F$19,Tablas!$A$706:$H$768,6,TRUE))) -> 0 | F60: =IF($B$17=1,0,(VLOOKUP($F$19,Tablas!$A$706:$H$768,8,TRUE))) -> 0
A61: Primas Hijos | B61: =IF($F$17=0,0,(VLOOKUP($F$17,Tablas!$A$769:$H$771,4,TRUE))) -> 0 | C61: =IF($F$17=0,0,(VLOOKUP($F$17,Tablas!$A$769:$H$771,5,TRUE))) -> 0 | D61: =IF($F$17=0,0,(VLOOKUP($F$17,Tablas!$A$769:$H$771,6,TRUE))) -> 0 | E61: =IF($F$17=0,0,(VLOOKUP($F$17,Tablas!$A$769:$H$771,7,TRUE))) -> 0 | F61: =IF($F$17=0,0,(VLOOKUP($F$17,Tablas!$A$769:$H$771,8,TRUE))) -> 0
A62: Rider: Complicaciones de Maternidad | B62: =+IF($B$1=FALSE,0,Tablas!D772) -> 0 | C62: =+IF($B$1=FALSE,0,Tablas!E772) -> 0 | D62: =+IF($B$1=FALSE,0,Tablas!F772) -> 0 | E62: =+IF($B$1=FALSE,0,Tablas!G772) -> 0 | F62: =+IF($B$1=FALSE,0,Tablas!H772) -> 0
A63: Rider: Trasplante Organos | B63: =IF($C$1=FALSE,0,Tablas!D773) -> 0 | C63: =IF($C$1=FALSE,0,Tablas!E773) -> 0 | D63: =IF($C$1=FALSE,0,Tablas!F773) -> 0 | E63: =IF($C$1=FALSE,0,Tablas!G773) -> 0 | F63: =IF($C$1=FALSE,0,Tablas!H773) -> 0
A64: Rider: Eliminación de Deducible | B64: =IF($B$2=FALSE,0,Tablas!D774) -> 0 | C64: =IF($B$2=FALSE,0,Tablas!E774) -> 0 | D64: =IF($B$2=FALSE,0,Tablas!F774) -> 0 | E64: =IF($B$2=FALSE,0,Tablas!G774) -> 0 | F64: =IF($B$2=FALSE,0,Tablas!H774) -> 0
A65: TOTAL PRIMA NETA | B65: =SUM(B59:B64) -> 4363.7 | C65: 2704.625 | D65: 2176.35 | E65: 1734.975 | F65: 1323.85
A66: Costo Administrativo Anual | B66: 75 | C66: 75 | D66: 75 | E66: 75 | F66: 75
A67: IVA (12%) | B67: 0 | C67: 0 | D67: 0 | E67: 0 | F67: 0
A68: TOTAL (1ra Cuota) | B68: =SUM(B65:B66) -> 4438.7 | C68: =SUM(C65:C66) -> 2779.625 | D68: =SUM(D65:D66) -> 2251.35 | E68: =SUM(E65:E66) -> 1809.975 | F68: =SUM(F65:F66) -> 1398.85
A69: TOTAL (2da a 4ta Cuota) | B69: =B68-B66 -> 4363.7 | C69: =C68-C66 -> 2704.625 | D69: 2176.35 | E69: 1734.975 | F69: 1323.85
A70: GRAN TOTAL | B70: =B68+B69*3 -> 17529.8 | C70: =SUM(C68:C69) -> 5484.25 | D70: 4427.7 | E70: 3544.95 | F70: 2722.7
A72: TARIFAS MENSUALES
A73: Prima de Titular | B73: =VLOOKUP($B$19,Tablas!$A$780:$H$842,4,TRUE) -> 1481.013328 | C73: =VLOOKUP($B$19,Tablas!$A$780:$H$842,5,TRUE) -> 917.9333301 | D73: =VLOOKUP($B$19,Tablas!$A$780:$H$842,6,TRUE) -> 738.6399974 | E73: =VLOOKUP($B$19,Tablas!$A$780:$H$842,7,TRUE) -> 588.8399979 | F73: =VLOOKUP($B$19,Tablas!$A$780:$H$842,8,TRUE) -> 449.3066651
A74: Prima de Cónyuge | B74: =IF($B$17=1,0,(VLOOKUP($F$19,Tablas!$A$780:$H$842,4,TRUE))) -> 0 | C74: =IF($B$17=1,0,(VLOOKUP($F$19,Tablas!$A$780:$H$842,5,TRUE))) -> 0 | D74: =IF($B$17=1,0,(VLOOKUP($F$19,Tablas!$A$780:$H$842,6,TRUE))) -> 0 | E74: =IF($B$17=1,0,(VLOOKUP($F$19,Tablas!$A$780:$H$842,7,TRUE))) -> 0 | F74: =IF($B$17=1,0,(VLOOKUP($F$19,Tablas!$A$780:$H$842,8,TRUE))) -> 0
A75: Primas Hijos | B75: =IF($F$17=0,0,(VLOOKUP($F$17,Tablas!$A$843:$H$845,4,TRUE))) -> 0 | C75: =IF($F$17=0,0,(VLOOKUP($F$17,Tablas!$A$843:$H$845,5,TRUE))) -> 0 | D75: =IF($F$17=0,0,(VLOOKUP($F$17,Tablas!$A$843:$H$845,6,TRUE))) -> 0 | E75: =IF($F$17=0,0,(VLOOKUP($F$17,Tablas!$A$843:$H$845,7,TRUE))) -> 0 | F75: =IF($F$17=0,0,(VLOOKUP($F$17,Tablas!$A$843:$H$845,8,TRUE))) -> 0
A76: Rider: Complicaciones de Maternidad | B76: =+IF($B$1=FALSE,0,Tablas!D846) -> 0 | C76: =+IF($B$1=FALSE,0,Tablas!E846) -> 0 | D76: =+IF($B$1=FALSE,0,Tablas!F846) -> 0 | E76: =+IF($B$1=FALSE,0,Tablas!G846) -> 0 | F76: =+IF($B$1=FALSE,0,Tablas!H846) -> 0
A77: Rider: Trasplante Organos | B77: =IF($C$1=FALSE,0,Tablas!D847) -> 0 | C77: =IF($C$1=FALSE,0,Tablas!E847) -> 0 | D77: =IF($C$1=FALSE,0,Tablas!F847) -> 0 | E77: =IF($C$1=FALSE,0,Tablas!G847) -> 0 | F77: =IF($C$1=FALSE,0,Tablas!H847) -> 0
A78: Rider: Eliminación de Deducible | B78: =IF($B$2=FALSE,0,Tablas!D848) -> 0 | C78: =IF($B$2=FALSE,0,Tablas!E848) -> 0 | D78: =IF($B$2=FALSE,0,Tablas!F848) -> 0 | E78: =IF($B$2=FALSE,0,Tablas!G848) -> 0 | F78: =IF($B$2=FALSE,0,Tablas!H848) -> 0
A79: TOTAL PRIMA NETA | B79: =SUM(B73:B78) -> 1481.013328 | C79: 917.9333301 | D79: 738.6399974 | E79: 588.8399979 | F79: 449.3066651
A80: Costo Administrativo Anual | B80: 75 | C80: 75 | D80: 75 | E80: 75 | F80: 75
A81: IVA (12%) | B81: 0 | C81: 0 | D81: 0 | E81: 0 | F81: 0
A82: TOTAL (1ra Cuota) | B82: =SUM(B79:B80) -> 1556.013328 | C82: =SUM(C79:C80) -> 992.9333301 | D82: =SUM(D79:D80) -> 813.6399974 | E82: =SUM(E79:E80) -> 663.8399979 | F82: =SUM(F79:F80) -> 524.3066651
A83: TOTAL (2da a Cuota 12) | B83: =B82-B80 -> 1481.013328 | C83: =C82-C80 -> 917.9333301 | D83: 738.6399974 | E83: 588.8399979 | F83: 449.3066651
A84: GRAN TOTAL | B84: =B82+B83*11 -> 17847.15994 | C84: =C82+C83*11 -> 11090.19996 | D84: 8938.679968 | E84: 7141.079975 | F84: 5466.679981
A88: Este presupuesto solamente tiene carácter informativo y en ningún momento expresa compromiso legal para suministrarle cobertura de seguro. La emisión de una póliza de seguro Bupa está sujeta a todas las evaluaciones de riesgo por parte de Bupa y a la recepción de todos los pagos de prima requeridos.

Sheet Unique Care (Deducible Cero)
M1: RESUMEN DE BENEFICIOS
G2: TRUE | H2: TRUE
G3: TRUE
A5: Cotización de Seguro Médico Internacional Bupa Unique Care: Deducible Cero Tarifas en US$ | Validas: 1 de enero de 2024 | J5: REGIÓN
J7: =IF('INGRESO DE DATOS'!W14="Guatemala","GUATEMALA",'INGRESO DE DATOS'!W14) -> REPÚBLICA DOMINICANA
A13: Nombre del asegurado principal: | G13: =+'INGRESO DE DATOS'!$C$36 -> John Doe
A15: Broker/Agente | G15: =+'INGRESO DE DATOS'!$C$45 -> Agencia
B17: Número de Adultos en la Póliza | G17: =+'INGRESO DE DATOS'!$C$38 -> 1 | H17: Dependientes (menores de 24 años) | J17: =+'INGRESO DE DATOS'!$F$38 -> 0
H18: =IF('INGRESO DE DATOS'!$P$2=TRUE, "Cotización para dependiente de 24 años","") -> 
B19: Edad del Titular | G19: =+'INGRESO DE DATOS'!$C$40 -> 47 | H19: Edad del Cónyuge | J19: =+'INGRESO DE DATOS'!$F$40 -> 46
I21: Fecha de Cotización: | J21: =NOW() -> 2024-01-10T17:02:02.680
J30: No incluye maternidad
F31: DEDUCIBLES | G31: PLAN A | H31: PLAN B | I31: PLAN C | J31: PLAN D | K31: PLAN 5
F32: Dentro del pais de residencia | G32: $0 | H32: $0 | I32: $0 | J32: $0 | K32: 10000
F33: Fuera del pais de residencia | G33: 1000 | H33: 2000 | I33: 3000 | J33: 5000 | K33: 10000
F36: TARIFAS ANUALES
F37: Prima de Titular | G37: =VLOOKUP($G$19,Tablas!$A$857:$H$919,4,TRUE) -> 6702 | H37: =VLOOKUP($G$19,Tablas!$A$857:$H$919,5,TRUE) -> 5896 | I37: =VLOOKUP($G$19,Tablas!$A$857:$H$919,6,TRUE) -> 5275 | J37: =VLOOKUP($G$19,Tablas!$A$857:$H$919,7,TRUE) -> 4657 | K37: =VLOOKUP($G$19,Tablas!$A$857:$H$919,8,TRUE) -> 0
F38: Prima de Cónyuge | G38: =IF($G$17=1,0,(VLOOKUP($J$19,Tablas!$A$857:$H$919,4,TRUE))) -> 0 | H38: =IF($G$17=1,0,(VLOOKUP($J$19,Tablas!$A$857:$H$919,5,TRUE))) -> 0 | I38: =IF($G$17=1,0,(VLOOKUP($J$19,Tablas!$A$857:$H$919,6,TRUE))) -> 0 | J38: =IF($G$17=1,0,(VLOOKUP($J$19,Tablas!$A$857:$H$919,7,TRUE))) -> 0 | K38: =IF($G$17=1,0,(VLOOKUP($J$19,Tablas!$A$857:$H$919,8,TRUE))) -> 0
F39: Primas Hijos | G39: =IF($J$17=0,0,(VLOOKUP($J$17,Tablas!$A$920:$H$922,4,TRUE))) -> 0 | H39: =IF($J$17=0,0,(VLOOKUP($J$17,Tablas!$A$920:$H$922,5,TRUE))) -> 0 | I39: =IF($J$17=0,0,(VLOOKUP($J$17,Tablas!$A$920:$H$922,6,TRUE))) -> 0 | J39: =IF($J$17=0,0,(VLOOKUP($J$17,Tablas!$A$920:$H$922,7,TRUE))) -> 0 | K39: =IF($J$17=0,0,(VLOOKUP($J$17,Tablas!$A$920:$H$922,8,TRUE))) -> 0
F40: Rider: Complicación de Maternidad | G40: =+IF($G$2=FALSE,0,Tablas!D923) -> 0 | H40: =+IF($G$2=FALSE,0,Tablas!E923) -> 0 | I40: =+IF($G$2=FALSE,0,Tablas!F923) -> 0 | J40: =+IF($G$2=FALSE,0,Tablas!G923) -> 225 | K40: =+IF($G$2=FALSE,0,Tablas!H923) -> 0
F41: Rider: Trasplante Órganos | G41: =+IF($H$2=FALSE,0,Tablas!D924) -> 300 | H41: =+IF($H$2=FALSE,0,Tablas!E924) -> 300 | I41: =+IF($H$2=FALSE,0,Tablas!F924) -> 300 | J41: =+IF($H$2=FALSE,0,Tablas!G924) -> 300 | K41: =+IF($H$2=FALSE,0,Tablas!H924) -> 0
F42: Rider: Eliminación de Deducible | K42: =+IF($G$3=FALSE,0,Tablas!H925) -> 0
F43: TOTAL PRIMA NETA | G43: =SUM(G37:G41) -> 7002 | H43: =SUM(H37:H41) -> 6196 | I43: 5575 | J43: 5182 | K43: =SUM(K37:K40) -> 0
F44: Costo Administrativo Anual | G44: 75 | H44: 75 | I44: 75 | J44: 75 | K44: 75
F45: IVA (12%) | G45: 0 | H45: 0 | I45: 0 | J45: 0 | K45: =SUM(K43:K44)*'INGRESO DE DATOS'!$S$19 -> 9
F46: GRAN TOTAL: | G46: =SUM(G43:G45) -> 7077 | H46: =SUM(H43:H45) -> 6271 | I46: 5650 | J46: 5257 | K46: 84
F49: TARIFAS SEMESTRALES
F50: Prima de Titular | G50: =VLOOKUP($G$19,Tablas!$A$932:$H$994,4,TRUE) -> 3552.06 | H50: =VLOOKUP($G$19,Tablas!$A$932:$H$994,5,TRUE) -> 3124.88 | I50: =VLOOKUP($G$19,Tablas!$A$932:$H$994,6,TRUE) -> 2795.75 | J50: =VLOOKUP($G$19,Tablas!$A$932:$H$994,7,TRUE) -> 2468.21 | K50: =VLOOKUP($G$19,Tablas!$A$932:$H$994,8,TRUE) -> 0
F51: Prima de Cónyuge | G51: =IF($G$17=1,0,(VLOOKUP($J$19,Tablas!$A$932:$H$994,4,TRUE))) -> 0 | H51: =IF($G$17=1,0,(VLOOKUP($J$19,Tablas!$A$932:$H$994,5,TRUE))) -> 0 | I51: =IF($G$17=1,0,(VLOOKUP($J$19,Tablas!$A$932:$H$994,6,TRUE))) -> 0 | J51: =IF($G$17=1,0,(VLOOKUP($J$19,Tablas!$A$932:$H$994,7,TRUE))) -> 0 | K51: =IF($G$17=1,0,(VLOOKUP($J$19,Tablas!$A$932:$H$994,8,TRUE))) -> 0
F52: Primas Hijos | G52: =IF($J$17=0,0,(VLOOKUP($J$17,Tablas!$A$995:$H$997,4,TRUE))) -> 0 | H52: =IF($J$17=0,0,(VLOOKUP($J$17,Tablas!$A$995:$H$997,5,TRUE))) -> 0 | I52: =IF($J$17=0,0,(VLOOKUP($J$17,Tablas!$A$995:$H$997,6,TRUE))) -> 0 | J52: =IF($J$17=0,0,(VLOOKUP($J$17,Tablas!$A$995:$H$997,7,TRUE))) -> 0 | K52: =IF($J$17=0,0,(VLOOKUP($J$17,Tablas!$A$995:$H$997,8,TRUE))) -> 0
F53: Rider: Complicación de Maternidad | G53: =+IF($G$2=FALSE,0,Tablas!D998) -> 0 | H53: =+IF($G$2=FALSE,0,Tablas!E998) -> 0 | I53: =+IF($G$2=FALSE,0,Tablas!F998) -> 0 | J53: =+IF($G$2=FALSE,0,Tablas!G998) -> 119.25 | K53: =+IF($G$2=FALSE,0,Tablas!H998) -> 0
F54: Rider: Trasplante Órganos | G54: =+IF($H$2=FALSE,0,Tablas!D999) -> 159 | H54: =+IF($H$2=FALSE,0,Tablas!E999) -> 159 | I54: =+IF($H$2=FALSE,0,Tablas!F999) -> 159 | J54: =+IF($H$2=FALSE,0,Tablas!G999) -> 159 | K54: =+IF($H$2=FALSE,0,Tablas!H999) -> 0
F55: Rider: Eliminación de Deducible | K55: =+IF($G$3=FALSE,0,Tablas!H1000) -> 0
F56: TOTAL PRIMA NETA | G56: =SUM(G50:G55) -> 3711.06 | H56: =SUM(H50:H55) -> 3283.88 | I56: =SUM(I50:I55) -> 2954.75 | J56: =SUM(J50:J55) -> 2746.46 | K56: =SUM(K50:K55) -> 0
F57: Costo Administrativo Anual | G57: 75 | H57: 75 | I57: 75 | J57: 75 | K57: 75
F58: IVA (12%) | G58: 0 | H58: 0 | I58: 0 | J58: 0 | K58: =SUM(K56:K57)*'INGRESO DE DATOS'!$S$19 -> 9
F59: TOTAL (1ra Cuota) | G59: =SUM(G56:G58) -> 3786.06 | H59: =SUM(H56:H58) -> 3358.88 | I59: 3029.75 | J59: 2821.46 | K59: 84
F60: TOTAL (2da Cuota) | G60: =G59-G57 -> 3711.06 | H60: =H59-H57 -> 3283.88 | I60: 2954.75 | J60: 2746.46 | K60: =K59-K57*'INGRESO DE DATOS'!$T$19 -> 0
F61: GRAN TOTAL | G61: =SUM(G59:G60) -> 7497.12 | H61: =SUM(H59:H60) -> 6642.76 | I61: 5984.5 | J61: 5567.92 | K61: 84
F64: TARIFAS TRIMESTRALES
F65: Prima de Titular | G65: =VLOOKUP($G$19,Tablas!$A$1008:$H$1070,4,TRUE) -> 1843.05 | H65: =VLOOKUP($G$19,Tablas!$A$1008:$H$1070,5,TRUE) -> 1621.4 | I65: =VLOOKUP($G$19,Tablas!$A$1008:$H$1070,6,TRUE) -> 1450.625 | J65: =VLOOKUP($G$19,Tablas!$A$1008:$H$1070,7,TRUE) -> 1280.675 | K65: =VLOOKUP($G$19,Tablas!$A$1008:$H$1070,8,TRUE) -> 0
F66: Prima de Cónyuge | G66: =IF($G$17=1,0,(VLOOKUP($J$19,Tablas!$A$1008:$H$1070,4,TRUE))) -> 0 | H66: =IF($G$17=1,0,(VLOOKUP($J$19,Tablas!$A$1008:$H$1070,5,TRUE))) -> 0 | I66: =IF($G$17=1,0,(VLOOKUP($J$19,Tablas!$A$1008:$H$1070,6,TRUE))) -> 0 | J66: =IF($G$17=1,0,(VLOOKUP($J$19,Tablas!$A$1008:$H$1070,7,TRUE))) -> 0 | K66: =IF($G$17=1,0,(VLOOKUP($J$19,Tablas!$A$1008:$H$1070,8,TRUE))) -> 0
F67: Primas Hijos | G67: =IF($J$17=0,0,(VLOOKUP($J$17,Tablas!$A$1071:$H$1073,4,TRUE))) -> 0 | H67: =IF($J$17=0,0,(VLOOKUP($J$17,Tablas!$A$1071:$H$1073,5,TRUE))) -> 0 | I67: =IF($J$17=0,0,(VLOOKUP($J$17,Tablas!$A$1071:$H$1073,6,TRUE))) -> 0 | J67: =IF($J$17=0,0,(VLOOKUP($J$17,Tablas!$A$1071:$H$1073,7,TRUE))) -> 0 | K67: =IF($J$17=0,0,(VLOOKUP($J$17,Tablas!$A$1071:$H$1073,8,TRUE))) -> 0
F68: Rider: Complicación de Maternidad | G68: =+IF($G$2=FALSE,0,Tablas!D1074) -> 0 | H68: =+IF($G$2=FALSE,0,Tablas!E1074) -> 0 | I68: =+IF($G$2=FALSE,0,Tablas!F1074) -> 0 | J68: =+IF($G$2=FALSE,0,Tablas!G1074) -> 61.875 | K68: =+IF($G$2=FALSE,0,Tablas!H1074) -> 0
F69: Rider: Trasplante Órganos | G69: =+IF($H$2=FALSE,0,Tablas!D1075) -> 82.5 | H69: =+IF($H$2=FALSE,0,Tablas!E1075) -> 82.5 | I69: =+IF($H$2=FALSE,0,Tablas!F1075) -> 82.5 | J69: =+IF($H$2=FALSE,0,Tablas!G1075) -> 82.5 | K69: =+IF($H$2=FALSE,0,Tablas!H1075) -> 0
F70: Rider: Eliminación de Deducible | K70: =+IF($G$3=FALSE,0,Tablas!H1076) -> 0
F71: TOTAL PRIMA NETA | G71: =SUM(G65:G70) -> 1925.55 | H71: =SUM(H65:H70) -> 1703.9 | I71: =SUM(I65:I70) -> 1533.125 | J71: =SUM(J65:J70) -> 1425.05 | K71: =SUM(K65:K70) -> 0
F72: Costo Administrativo Anual | G72: 75 | H72: 75 | I72: 75 | J72: 75 | K72: 75
F73: IVA (12%) | G73: 0 | H73: 0 | I73: 0 | J73: 0 | K73: =SUM(K71:K72)*'INGRESO DE DATOS'!$S$19 -> 9
F74: TOTAL (1ra Cuota) | G74: =SUM(G71:G73) -> 2000.55 | H74: =SUM(H71:H73) -> 1778.9 | I74: 1608.125 | J74: 1500.05 | K74: 84
F75: TOTAL (2da a 4ta Cuota) | G75: =G74-G72 -> 1925.55 | H75: =H74-H72 -> 1703.9 | I75: 1533.125 | J75: 1425.05 | K75: =K74-K72*'INGRESO DE DATOS'!$T$19 -> 0
F76: GRAN TOTAL | G76: =G74+G75*3 -> 7777.2 | H76: =H74+H75*3 -> 6890.6 | I76: 6207.5 | J76: 5775.2 | K76: =SUM(K74:K75) -> 84
F79: TARIFAS MENSUALES
F80: Prima de Titular | G80: =VLOOKUP($G$19,Tablas!$A$1082:$H$1144,4,TRUE) -> 625.5199978 | H80: =VLOOKUP($G$19,Tablas!$A$1082:$H$1144,5,TRUE) -> 550.2933314 | I80: =VLOOKUP($G$19,Tablas!$A$1082:$H$1144,6,TRUE) -> 492.3333316 | J80: =VLOOKUP($G$19,Tablas!$A$1082:$H$1144,7,TRUE) -> 434.6533318 | K80: =VLOOKUP($G$19,Tablas!$A$1008:$H$1070,8,TRUE) -> 0
F81: Prima de Cónyuge | G81: =IF($G$17=1,0,(VLOOKUP($J$19,Tablas!$A$1082:$H$1144,4,TRUE))) -> 0 | H81: =IF($G$17=1,0,(VLOOKUP($J$19,Tablas!$A$1082:$H$1144,5,TRUE))) -> 0 | I81: =IF($G$17=1,0,(VLOOKUP($J$19,Tablas!$A$1082:$H$1144,6,TRUE))) -> 0 | J81: =IF($G$17=1,0,(VLOOKUP($J$19,Tablas!$A$1082:$H$1144,7,TRUE))) -> 0 | K81: =IF($G$17=1,0,(VLOOKUP($J$19,Tablas!$A$1008:$H$1070,8,TRUE))) -> 0
F82: Primas Hijos | G82: =IF($J$17=0,0,(VLOOKUP($J$17,Tablas!$A$1145:$H$1147,4,TRUE))) -> 0 | H82: =IF($J$17=0,0,(VLOOKUP($J$17,Tablas!$A$1145:$H$1147,5,TRUE))) -> 0 | I82: =IF($J$17=0,0,(VLOOKUP($J$17,Tablas!$A$1145:$H$1147,6,TRUE))) -> 0 | J82: =IF($J$17=0,0,(VLOOKUP($J$17,Tablas!$A$1145:$H$1147,7,TRUE))) -> 0 | K82: =IF($J$17=0,0,(VLOOKUP($J$17,Tablas!$A$1071:$H$1073,8,TRUE))) -> 0
F83: Rider: Complicación de Maternidad | G83: =+IF($G$2=FALSE,0,Tablas!D1148) -> 0 | H83: =+IF($G$2=FALSE,0,Tablas!E1148) -> 0 | I83: =+IF($G$2=FALSE,0,Tablas!F1148) -> 0 | J83: =+IF($G$2=FALSE,0,Tablas!G1148) -> 20.99999993 | K83: =+IF($G$2=FALSE,0,Tablas!H1089) -> 0
F84: Rider: Trasplante Órganos | G84: =+IF($H$2=FALSE,0,Tablas!D1149) -> 27.9999999 | H84: =+IF($H$2=FALSE,0,Tablas!E1149) -> 27.9999999 | I84: =+IF($H$2=FALSE,0,Tablas!F1149) -> 27.9999999 | J84: =+IF($H$2=FALSE,0,Tablas!G1149) -> 27.9999999 | K84: =+IF($H$2=FALSE,0,Tablas!H1090) -> 0
F85: Rider: Eliminación de Deducible | K85: =+IF($G$3=FALSE,0,Tablas!H1091) -> 0
F86: TOTAL PRIMA NETA | G86: =SUM(G80:G85) -> 653.5199977 | H86: =SUM(H80:H85) -> 578.2933313 | I86: =SUM(I80:I85) -> 520.3333315 | J86: =SUM(J80:J85) -> 483.6533316 | K86: =SUM(K80:K85) -> 0
F87: Costo Administrativo Anual | G87: 75 | H87: 75 | I87: 75 | J87: 75 | K87: 75
F88: IVA (12%) | G88: 0 | H88: 0 | I88: 0 | J88: 0 | K88: =SUM(K86:K87)*'INGRESO DE DATOS'!$S$19 -> 9
F89: TOTAL (1ra Cuota) | G89: =SUM(G86:G88) -> 728.5199977 | H89: =SUM(H86:H88) -> 653.2933313 | I89: 595.3333315 | J89: 558.6533316 | K89: 84
F90: TOTAL (2da a Cuota 12) | G90: =G89-G87 -> 653.5199977 | H90: =H89-H87 -> 578.2933313 | I90: 520.3333315 | J90: 483.6533316 | K90: =K89-K87*'INGRESO DE DATOS'!$T$19 -> 0
F91: GRAN TOTAL | G91: =G89+G90*11 -> 7917.239972 | H91: =H89+H90*11 -> 7014.519975 | I91: 6318.999978 | J91: 5878.839979 | K91: =SUM(K89:K90) -> 84
F94: Este presupuesto solamente tiene carácter informativo y en ningún momento expresa compromiso legal para suministrarle cobertura de seguro. La emisión de una póliza de seguro Bupa está sujeta a todas las evaluaciones de riesgo por parte de Bupa y a la recepción de todos los pagos de prima requeridos.

Sheet Unique Care
B1: FALSE | C1: FALSE | D1: FALSE | I1: RESUMEN DE BENEFICIOS
A5: Cotización de Seguro Médico Internacional Bupa Unique Care Tarifas en US$ | Validas: 1 de enero de 2024 | F5: REGIÓN
F7: =IF('INGRESO DE DATOS'!W14="Guatemala","GUATEMALA",'INGRESO DE DATOS'!W14) -> REPÚBLICA DOMINICANA
A13: Nombre del asegurado principal | B13: =+'INGRESO DE DATOS'!$C$36 -> John Doe
A15: Broker/Agente | B15: =+'INGRESO DE DATOS'!$C$45 -> Agencia
A17: Número de Adultos en la Póliza | B17: =+'INGRESO DE DATOS'!$C$38 -> 1 | D17: Dependientes (menores de 24 años) | F17: =+'INGRESO DE DATOS'!$F$38 -> 0
D18: =IF('INGRESO DE DATOS'!$P$2=TRUE, "Cotización para dependiente de 24 años","") -> 
A19: Edad del Titular | B19: =+'INGRESO DE DATOS'!$C$40 -> 47 | D19: Edad del Cónyuge | F19: =+'INGRESO DE DATOS'!$F$40 -> 46
D21: Fecha de Cotización: | F21: =NOW() -> 2024-01-10T17:02:02.680
E24: No incluyen maternidad
A25: DEdUCIBLES | B25: PLAN 1 | C25: PLAN 2 | D25: PLAN 3 | E25: PLAN 4 | F25: PLAN 5 | G25: PLAN 6
A26: Dentro del pais de residencia | B26: 250 | C26: 1000 | D26: 2000 | E26: 5000 | F26: 10000 | G26: 20000
A27: Fuera del pais de residencia | B27: 1000 | C27: 2000 | D27: 3000 | E27: 5000 | F27: 10000 | G27: 20000
A30: TARIFAS ANUALES
A31: Prima de Titular | B31: =VLOOKUP($B$19,Tablas!$A$1156:$H$1218,4,TRUE) -> 6205 | C31: =VLOOKUP($B$19,Tablas!$A$1156:$H$1218,5,TRUE) -> 4647 | D31: =VLOOKUP($B$19,Tablas!$A$1156:$H$1218,6,TRUE) -> 4026 | E31: =VLOOKUP($B$19,Tablas!$A$1156:$H$1218,7,TRUE) -> 3396 | F31: =VLOOKUP($B$19,Tablas!$A$1156:$H$1218,8,TRUE) -> 2732 | G31: =VLOOKUP($B$19,Tablas!$A$256:$H$318,8,TRUE) -> 0
A32: Prima de Cónyuge | B32: =IF($B$17=1,0,(VLOOKUP($F$19,Tablas!$A$1156:$H$1218,4,TRUE))) -> 0 | C32: =IF($B$17=1,0,(VLOOKUP($F$19,Tablas!$A$1156:$H$1218,5,TRUE))) -> 0 | D32: =IF($B$17=1,0,(VLOOKUP($F$19,Tablas!$A$1156:$H$1218,6,TRUE))) -> 0 | E32: =IF($B$17=1,0,(VLOOKUP($F$19,Tablas!$A$1156:$H$1218,7,TRUE))) -> 0 | F32: =IF($B$17=1,0,(VLOOKUP($F$19,Tablas!$A$1156:$H$1218,8,TRUE))) -> 0 | G32: =IF($B$17=1,0,(VLOOKUP($F$19,Tablas!$A$1156:$H$1218,4,TRUE))) -> 0
A33: Primas Hijos | B33: =IF($F$17=0,0,(VLOOKUP($F$17,Tablas!$A$1219:$H$1221,4,TRUE))) -> 0 | C33: =IF($F$17=0,0,(VLOOKUP($F$17,Tablas!$A$1219:$H$1221,5,TRUE))) -> 0 | D33: =IF($F$17=0,0,(VLOOKUP($F$17,Tablas!$A$1219:$H$1221,6,TRUE))) -> 0 | E33: =IF($F$17=0,0,(VLOOKUP($F$17,Tablas!$A$1219:$H$1221,7,TRUE))) -> 0 | F33: =IF($F$17=0,0,(VLOOKUP($F$17,Tablas!$A$1219:$H$1221,8,TRUE))) -> 0 | G33: =IF($F$17=0,0,(VLOOKUP($F$17,Tablas!$A$319:$H$321,8,TRUE))) -> 0
A34: Rider: Complicaciones de Maternidad | B34: =+IF($B$1=FALSE,0,Tablas!D1222) -> 0 | C34: =+IF($B$1=FALSE,0,Tablas!E1222) -> 0 | D34: =+IF($B$1=FALSE,0,Tablas!F1222) -> 0 | E34: =+IF($B$1=FALSE,0,Tablas!G1222) -> 0 | F34: =+IF($B$1=FALSE,0,Tablas!H1222) -> 0 | G34: =+IF($B$1=FALSE,0,Tablas!H322) -> 0
A35: Rider: Trasplante Organos | B35: =+IF($C$1=FALSE,0,Tablas!D1223) -> 0 | C35: =+IF($C$1=FALSE,0,Tablas!E1223) -> 0 | D35: =+IF($C$1=FALSE,0,Tablas!F1223) -> 0 | E35: =+IF($C$1=FALSE,0,Tablas!G1223) -> 0 | F35: =+IF($C$1=FALSE,0,Tablas!H1223) -> 0 | G35: =IF($C$1=FALSE,0,Tablas!H396) -> 0
A36: Rider: Eliminación de Deducible | B36: =+IF($D$1=FALSE,0,Tablas!D1224) -> 0 | C36: =+IF($D$1=FALSE,0,Tablas!E1224) -> 0 | D36: =+IF($D$1=FALSE,0,Tablas!F1224) -> 0 | E36: =+IF($D$1=FALSE,0,Tablas!G1224) -> 0 | F36: =+IF($D$1=FALSE,0,Tablas!H1224) -> 0 | G36: =IF($C$1=FALSE,0,Tablas!H324) -> 0
A37: TOTAL PRIMA NETA | B37: =SUM(B31:B36) -> 6205 | C37: =SUM(C31:C36) -> 4647 | D37: 4026 | E37: 3396 | F37: 2732 | G37: =SUM(G31:G35) -> 0
A38: Costo Administrativo Annual | B38: 75 | C38: 75 | D38: 75 | E38: 75 | F38: 75 | G38: 75
A39: IVA (12%) | B39: 0 | C39: 0 | D39: 0 | E39: 0 | F39: 0 | G39: 0
A40: GRAN TOTAL : | B40: =SUM(B37:B39) -> 6280 | C40: =SUM(C37:C39) -> 4722 | D40: =SUM(D37:D39) -> 4101 | E40: 3471 | F40: 2807 | G40: 75
A43: TARIFAS SEMESTRALES
A44: Prima de Titular | B44: =VLOOKUP($B$19,Tablas!$A$1231:$H$1293,4,TRUE) -> 3288.65 | C44: =VLOOKUP($B$19,Tablas!$A$1231:$H$1293,5,TRUE) -> 2462.91 | D44: =VLOOKUP($B$19,Tablas!$A$1231:$H$1293,6,TRUE) -> 2133.78 | E44: =VLOOKUP($B$19,Tablas!$A$1231:$H$1293,7,TRUE) -> 1799.88 | F44: =VLOOKUP($B$19,Tablas!$A$1231:$H$1293,8,TRUE) -> 1447.96 | G44: =VLOOKUP($B$19,Tablas!$A$330:$H$392,8,TRUE) -> 0
A45: Prima de Cónyuge | B45: =IF($B$17=1,0,(VLOOKUP($F$19,Tablas!$A$1231:$H$1293,4,TRUE))) -> 0 | C45: =IF($B$17=1,0,(VLOOKUP($F$19,Tablas!$A$1231:$H$1293,5,TRUE))) -> 0 | D45: =IF($B$17=1,0,(VLOOKUP($F$19,Tablas!$A$1231:$H$1293,6,TRUE))) -> 0 | E45: =IF($B$17=1,0,(VLOOKUP($F$19,Tablas!$A$1231:$H$1293,7,TRUE))) -> 0 | F45: =IF($B$17=1,0,(VLOOKUP($F$19,Tablas!$A$1231:$H$1293,8,TRUE))) -> 0 | G45: =IF($B$17=1,0,(VLOOKUP($F$19,Tablas!$A$330:$H$392,8,TRUE))) -> 0
A46: Primas Hijos | B46: =IF($F$17=0,0,(VLOOKUP($F$17,Tablas!$A$1294:$I$1296,4,TRUE))) -> 0 | C46: =IF($F$17=0,0,(VLOOKUP($F$17,Tablas!$A$1294:$I$1296,5,TRUE))) -> 0 | D46: =IF($F$17=0,0,(VLOOKUP($F$17,Tablas!$A$1294:$I$1296,6,TRUE))) -> 0 | E46: =IF($F$17=0,0,(VLOOKUP($F$17,Tablas!$A$1294:$I$1296,7,TRUE))) -> 0 | F46: =IF($F$17=0,0,(VLOOKUP($F$17,Tablas!$A$1294:$I$1296,8,TRUE))) -> 0 | G46: =IF($F$17=0,0,(VLOOKUP($F$17,Tablas!$A$393:$H$395,8,TRUE))) -> 0
A47: Rider: Complicaciones de Maternidad | B47: =+IF($B$1=FALSE,0,Tablas!D1297) -> 0 | C47: =+IF($B$1=FALSE,0,Tablas!E1297) -> 0 | D47: =+IF($B$1=FALSE,0,Tablas!F1297) -> 0 | E47: =+IF($B$1=FALSE,0,Tablas!G1297) -> 0 | F47: =+IF($B$1=FALSE,0,Tablas!H1297) -> 0 | G47: =+IF($B$1=FALSE,0,Tablas!H396) -> 0
A48: Rider: Trasplante Organos | B48: =+IF($C$1=FALSE,0,Tablas!D1298) -> 0 | C48: =+IF($C$1=FALSE,0,Tablas!E1298) -> 0 | D48: =+IF($C$1=FALSE,0,Tablas!F1298) -> 0 | E48: =+IF($C$1=FALSE,0,Tablas!G1298) -> 0 | F48: =+IF($C$1=FALSE,0,Tablas!H1298) -> 0 | G48: =IF($C$1=FALSE,0,Tablas!H397) -> 0
A49: Rider: Eliminación de Deducible | B49: =+IF($D$1=FALSE,0,Tablas!D1299) -> 0 | C49: =+IF($D$1=FALSE,0,Tablas!E1299) -> 0 | D49: =+IF($D$1=FALSE,0,Tablas!F1299) -> 0 | E49: =+IF($D$1=FALSE,0,Tablas!G1299) -> 0 | F49: =+IF($D$1=FALSE,0,Tablas!H1299) -> 0 | G49: =IF($D$1=FALSE,0,Tablas!H398) -> 0
A50: TOTAL PRIMA NETA | B50: =SUM(B44:B49) -> 3288.65 | C50: =SUM(C44:C49) -> 2462.91 | D50: 2133.78 | E50: 1799.88 | F50: 1447.96 | G50: =SUM(G44:G48) -> 0
A51: Costo Administrativo Anual | B51: 75 | C51: 75 | D51: 75 | E51: 75 | F51: 75 | G51: 75
A52: IVA (12%) | B52: 0 | C52: 0 | D52: 0 | E52: 0 | F52: 0 | G52: 0
A53: TOTAL (1ra Cuota) | B53: =SUM(B50:B52) -> 3363.65 | C53: =SUM(C50:C52) -> 2537.91 | D53: =SUM(D50:D52) -> 2208.78 | E53: 1874.88 | F53: 1522.96 | G53: 75
A54: TOTAL (2da Cuota) | B54: =B53-B51 -> 3288.65 | C54: =C53-C51 -> 2462.91 | D54: 2133.78 | E54: 1799.88 | F54: 1447.96 | G54: =G53-G51*'INGRESO DE DATOS'!$T$19 -> -9
A55: GRAN TOTAL | B55: =SUM(B53:B54) -> 6652.3 | C55: =SUM(C53:C54) -> 5000.82 | D55: =SUM(D53:D54) -> 4342.56 | E55: 3674.76 | F55: 2970.92 | G55: 66
A58: TARIFAS TRIMESTRALES
A59: Prima de Titular | B59: =VLOOKUP($B$19,Tablas!$A$1307:$H$1369,4,TRUE) -> 1706.375 | C59: =VLOOKUP($B$19,Tablas!$A$1307:$H$1369,5,TRUE) -> 1277.925 | D59: =VLOOKUP($B$19,Tablas!$A$1307:$H$1369,6,TRUE) -> 1107.15 | E59: =VLOOKUP($B$19,Tablas!$A$1307:$H$1369,7,TRUE) -> 933.9 | F59: =VLOOKUP($B$19,Tablas!$A$1307:$H$1369,8,TRUE) -> 751.3 | G59: =VLOOKUP($B$19,Tablas!$A$405:$H$467,8,TRUE) -> 0
A60: Prima de Cónyuge | B60: =IF($B$17=1,0,(VLOOKUP($F$19,Tablas!$A$1307:$H$1369,4,TRUE))) -> 0 | C60: =IF($B$17=1,0,(VLOOKUP($F$19,Tablas!$A$1307:$H$1369,5,TRUE))) -> 0 | D60: =IF($B$17=1,0,(VLOOKUP($F$19,Tablas!$A$1307:$H$1369,6,TRUE))) -> 0 | E60: =IF($B$17=1,0,(VLOOKUP($F$19,Tablas!$A$1307:$H$1369,7,TRUE))) -> 0 | F60: =IF($B$17=1,0,(VLOOKUP($F$19,Tablas!$A$1307:$H$1369,8,TRUE))) -> 0 | G60: =IF($B$17=1,0,(VLOOKUP($F$19,Tablas!$A$405:$H$467,8,TRUE))) -> 0
A61: Primas Hijos | B61: =IF($F$17=0,0,(VLOOKUP($F$17,Tablas!$A$1370:$H$1372,4,TRUE))) -> 0 | C61: =IF($F$17=0,0,(VLOOKUP($F$17,Tablas!$A$1370:$H$1372,5,TRUE))) -> 0 | D61: =IF($F$17=0,0,(VLOOKUP($F$17,Tablas!$A$1370:$H$1372,6,TRUE))) -> 0 | E61: =IF($F$17=0,0,(VLOOKUP($F$17,Tablas!$A$1370:$H$1372,7,TRUE))) -> 0 | F61: =IF($F$17=0,0,(VLOOKUP($F$17,Tablas!$A$1370:$H$1372,8,TRUE))) -> 0 | G61: =IF($F$17=0,0,(VLOOKUP($F$17,Tablas!$A$468:$H$470,8,TRUE))) -> 0
A62: Rider: Complicaciones de Maternidad | B62: =+IF($B$1=FALSE,0,Tablas!D1373) -> 0 | C62: =+IF($B$1=FALSE,0,Tablas!E1373) -> 0 | D62: =+IF($B$1=FALSE,0,Tablas!F1373) -> 0 | E62: =+IF($B$1=FALSE,0,Tablas!G1373) -> 0 | F62: =+IF($B$1=FALSE,0,Tablas!H1373) -> 0 | G62: =+IF($B$1=FALSE,0,Tablas!H471) -> 0
A63: Rider: Trasplante Organos | B63: =+IF($C$1=FALSE,0,Tablas!D1374) -> 0 | C63: =+IF($C$1=FALSE,0,Tablas!E1374) -> 0 | D63: =+IF($C$1=FALSE,0,Tablas!F1374) -> 0 | E63: =+IF($C$1=FALSE,0,Tablas!G1374) -> 0 | F63: =+IF($C$1=FALSE,0,Tablas!H1374) -> 0 | G63: =IF($C$1=FALSE,0,Tablas!H472) -> 0
A64: Rider: Eliminación de Deducible | B64: =+IF($D$1=FALSE,0,Tablas!D1375) -> 0 | C64: =+IF($D$1=FALSE,0,Tablas!E1375) -> 0 | D64: =+IF($D$1=FALSE,0,Tablas!F1375) -> 0 | E64: =+IF($D$1=FALSE,0,Tablas!G1375) -> 0 | F64: =+IF($D$1=FALSE,0,Tablas!H1375) -> 0 | G64: =IF($D$1=FALSE,0,Tablas!H473) -> 0
A65: TOTAL PRIMA NETA | B65: =SUM(B59:B64) -> 1706.375 | C65: =SUM(C59:C64) -> 1277.925 | D65: 1107.15 | E65: 933.9 | F65: 751.3 | G65: =SUM(G59:G63) -> 0
A66: Costo Administrativo Anual | B66: 75 | C66: 75 | D66: 75 | E66: 75 | F66: 75 | G66: 75
A67: IVA(12%) | B67: 0 | C67: 0 | D67: 0 | E67: 0 | F67: 0 | G67: 0
A68: TOTAL (1ra Cuota) | B68: =SUM(B65:B67) -> 1781.375 | C68: =SUM(C65:C67) -> 1352.925 | D68: =SUM(D65:D67) -> 1182.15 | E68: 1008.9 | F68: 826.3 | G68: 75
A69: TOTAL (2da Cuota) | B69: =B68-B66 -> 1706.375 | C69: =C68-C66 -> 1277.925 | D69: 1107.15 | E69: 933.9 | F69: 751.3 | G69: =G68-G66*'INGRESO DE DATOS'!$T$19 -> -9
A70: GRAN TOTAL | B70: =B68+B69*3 -> 6900.5 | C70: =C68+C69*3 -> 5186.7 | D70: 4503.6 | E70: 3810.6 | F70: 3080.2 | G70: =SUM(G68:G69) -> 66
A72: TARIFAS MENSUALES
A73: Prima de Titular | B73: =VLOOKUP($B$19,Tablas!$A$1381:$H$1443,4,TRUE) -> 579.1333313 | C73: =VLOOKUP($B$19,Tablas!$A$1381:$H$1443,5,TRUE) -> 433.7199985 | D73: =VLOOKUP($B$19,Tablas!$A$1381:$H$1443,6,TRUE) -> 375.7599987 | E73: =VLOOKUP($B$19,Tablas!$A$1381:$H$1443,7,TRUE) -> 316.9599989 | F73: =VLOOKUP($B$19,Tablas!$A$1381:$H$1443,8,TRUE) -> 254.9866658 | G73: =VLOOKUP($B$19,Tablas!$A$480:$H$542,8,TRUE) -> 0
A74: Prima de Cónyuge | B74: =IF($B$17=1,0,(VLOOKUP($F$19,Tablas!$A$1381:$H$1443,4,TRUE))) -> 0 | C74: =IF($B$17=1,0,(VLOOKUP($F$19,Tablas!$A$1381:$H$1443,5,TRUE))) -> 0 | D74: =IF($B$17=1,0,(VLOOKUP($F$19,Tablas!$A$1381:$H$1443,6,TRUE))) -> 0 | E74: =IF($B$17=1,0,(VLOOKUP($F$19,Tablas!$A$1381:$H$1443,7,TRUE))) -> 0 | F74: =IF($B$17=1,0,(VLOOKUP($F$19,Tablas!$A$1381:$H$1443,8,TRUE))) -> 0 | G74: =IF($B$17=1,0,(VLOOKUP($F$19,Tablas!$A$480:$H$542,8,TRUE))) -> 0
A75: Primas Hijos | B75: =IF($F$17=0,0,(VLOOKUP($F$17,Tablas!$A$1444:$H$1446,4,TRUE))) -> 0 | C75: =IF($F$17=0,0,(VLOOKUP($F$17,Tablas!$A$1444:$H$1446,5,TRUE))) -> 0 | D75: =IF($F$17=0,0,(VLOOKUP($F$17,Tablas!$A$1444:$H$1446,6,TRUE))) -> 0 | E75: =IF($F$17=0,0,(VLOOKUP($F$17,Tablas!$A$1444:$H$1446,7,TRUE))) -> 0 | F75: =IF($F$17=0,0,(VLOOKUP($F$17,Tablas!$A$1444:$H$1446,8,TRUE))) -> 0 | G75: =IF($F$17=0,0,(VLOOKUP($F$17,Tablas!$A$543:$H$545,8,TRUE))) -> 0
A76: Rider: Complicaciones de Maternidad | B76: =+IF($B$1=FALSE,0,Tablas!D1447) -> 0 | C76: =+IF($B$1=FALSE,0,Tablas!E1447) -> 0 | D76: =+IF($B$1=FALSE,0,Tablas!F1447) -> 0 | E76: =+IF($B$1=FALSE,0,Tablas!G1447) -> 0 | F76: =+IF($B$1=FALSE,0,Tablas!H1447) -> 0 | G76: =+IF($B$1=FALSE,0,Tablas!H546) -> 0
A77: Rider: Trasplante Organos | B77: =+IF($C$1=FALSE,0,Tablas!D1448) -> 0 | C77: =+IF($C$1=FALSE,0,Tablas!E1448) -> 0 | D77: =+IF($C$1=FALSE,0,Tablas!F1448) -> 0 | E77: =+IF($C$1=FALSE,0,Tablas!G1448) -> 0 | F77: =+IF($C$1=FALSE,0,Tablas!H1448) -> 0 | G77: =IF($C$1=FALSE,0,Tablas!H547) -> 0
A78: Rider: Eliminación de Deducible | B78: =+IF($D$1=FALSE,0,Tablas!D1449) -> 0 | C78: =+IF($D$1=FALSE,0,Tablas!E1449) -> 0 | D78: =+IF($D$1=FALSE,0,Tablas!F1449) -> 0 | E78: =+IF($D$1=FALSE,0,Tablas!G1449) -> 0 | F78: =+IF($D$1=FALSE,0,Tablas!H1449) -> 0 | G78: =IF($C$1=FALSE,0,Tablas!H548) -> 0
A79: TOTAL PRIMA NETA | B79: =SUM(B73:B78) -> 579.1333313 | C79: =SUM(C73:C78) -> 433.7199985 | D79: 375.7599987 | E79: 316.9599989 | F79: 254.9866658 | G79: =SUM(G73:G77) -> 0
A80: Costo Administrativo Anual | B80: 75 | C80: 75 | D80: 75 | E80: 75 | F80: 75 | G80: 75
A81: IVA(12%) | B81: 0 | C81: 0 | D81: 0 | E81: 0 | F81: 0 | G81: 0
A82: TOTAL (1ra Cuota) | B82: =SUM(B79:B81) -> 654.1333313 | C82: =SUM(C79:C81) -> 508.7199985 | D82: =SUM(D79:D81) -> 450.7599987 | E82: 391.9599989 | F82: 329.9866658 | G82: 75
A83: TOTAL (2da a Cuota 12) | B83: =B82-B80 -> 579.1333313 | C83: =C82-C80 -> 433.7199985 | D83: 375.7599987 | E83: 316.9599989 | F83: 254.9866658 | G83: =G82-G80*'INGRESO DE DATOS'!$T$19 -> -9
A84: GRAN TOTAL | B84: =B82+B83*11 -> 7024.599975 | C84: =C82+C83*11 -> 5279.639981 | D84: 4584.119984 | E84: 3878.519986 | F84: 3134.839989 | G84: =SUM(G82:G83) -> 66
A89: Este presupuesto solamente tiene carácter informativo y en ningún momento expresa compromiso legal para suministrarle cobertura de seguro. La emisión de una póliza de seguro Bupa está sujeta a todas las evaluaciones de riesgo por parte de Bupa y a la recepción de todos los pagos de prima requeridos.

Sheet Resumen de Tarifas
A5: Cotización de Seguro Médico Internacional Resumen de Tarifas Tarifas en US$ | Validas: 1 de enero de 2024 | H5: REGIÓN
H7: =IF('INGRESO DE DATOS'!W14="Guatemala","GUATEMALA",'INGRESO DE DATOS'!W14) -> REPÚBLICA DOMINICANA
A13: Nombre del asegurado principal | B13: =+'INGRESO DE DATOS'!$C$36 -> John Doe
A15: Broker/Agente | B15: =+'INGRESO DE DATOS'!$C$45 -> Agencia
A17: Número de Adultos en la Póliza | B17: =+'INGRESO DE DATOS'!$C$38 -> 1 | E17: Dependientes (menores de 24 años) | H17: =+'INGRESO DE DATOS'!$F$38 -> 0
E18: =IF('INGRESO DE DATOS'!$P$2=TRUE, "Cotización para dependiente de 24 años","") -> 
A19: Edad del Titular | B19: =+'INGRESO DE DATOS'!$C$40 -> 47 | E19: Edad del Cónyuge | H19: =+'INGRESO DE DATOS'!$F$40 -> 46
A22: DEDUCIBLES | D22: PLAN 1 | E22: PLAN 2 | F22: PLAN 3 | G22: PLAN 4
A23: Dentro del pais de residencia | D23: $0 | E23: $0 | F23: 500 | G23: 2000
A24: Fuera del pais de residencia | D24: 1000 | E24: 3000 | F24: 2000 | G24: 5000
A25: Bupa Essential Care
A26: Tarifas Anuales | D26: ='Bupa Essential Care'!G42 -> 3501 | E26: ='Bupa Essential Care'!H42 -> 3186 | F26: ='Bupa Essential Care'!I42 -> 2902 | G26: ='Bupa Essential Care'!J42 -> 2512
A27: Tarifas Semestrales | D27: ='Bupa Essential Care'!G56 -> 3706.56 | E27: ='Bupa Essential Care'!H56 -> 3372.66 | F27: ='Bupa Essential Care'!I56 -> 3071.62 | G27: ='Bupa Essential Care'!J56 -> 2658.22
A28: Tarifas Trimestrales | D28: ='Bupa Essential Care'!G69 -> 3843.6 | E28: ='Bupa Essential Care'!H69 -> 3497.1 | F28: ='Bupa Essential Care'!I69 -> 3184.7 | G28: ='Bupa Essential Care'!J69 -> 2755.7
A29: Tarifas Mensuales | D29: ='Bupa Essential Care'!G82 -> 3912.119986 | E29: ='Bupa Essential Care'!H82 -> 3559.319988 | F29: ='Bupa Essential Care'!I82 -> 3241.239989 | G29: ='Bupa Essential Care'!J82 -> 2804.43999
G31: No incluyen maternidad
A32: DEDUCIBLES | D32: PLAN 1 | E32: PLAN 2 | F32: PLAN 3 | G32: PLAN 4 | H32: PLAN 5
A33: Dentro del pais de residencia | D33: 250 | E33: 1000 | F33: 2000 | G33: 5000 | H33: 10000
A34: Fuera del pais de residencia | D34: 1000 | E34: 2000 | F34: 3000 | G34: 5000 | H34: 10000
A35: Bupa Unique Care
A36: Tarifas Anuales | D36: ='Unique Care'!B40 -> 6280 | E36: ='Unique Care'!C40 -> 4722 | F36: ='Unique Care'!D40 -> 4101 | G36: ='Unique Care'!E40 -> 3471 | H36: ='Unique Care'!F40 -> 2807
A37: Tarifas Semestrales | D37: ='Unique Care'!B55 -> 6652.3 | E37: ='Unique Care'!C55 -> 5000.82 | F37: ='Unique Care'!D55 -> 4342.56 | G37: ='Unique Care'!E55 -> 3674.76 | H37: ='Unique Care'!F55 -> 2970.92
A38: Tarifas Trimestrales | D38: ='Unique Care'!B70 -> 6900.5 | E38: ='Unique Care'!C70 -> 5186.7 | F38: ='Unique Care'!D70 -> 4503.6 | G38: ='Unique Care'!E70 -> 3810.6 | H38: ='Unique Care'!F70 -> 3080.2
A39: Tarifas Mensuales | D39: ='Unique Care'!B84 -> 7024.599975 | E39: ='Unique Care'!C84 -> 5279.639981 | F39: ='Unique Care'!D84 -> 4584.119984 | G39: ='Unique Care'!E84 -> 3878.519986 | H39: ='Unique Care'!F84 -> 3134.839989
G41: No incluye materniad
A42: DEDUCIBLES | D42: PLAN 1 | E42: PLAN 2 | F42: PLAN 3 | G42: PLAN 4
A43: Dentro del pais de residencia | D43: $0 | E43: $0 | F43: $0 | G43: $0
A44: Fuera del pais de residencia | D44: 1000 | E44: 2000 | F44: 3000 | G44: 5000
A45: Bupa Unique Care: Deducible Cero
A46: Tarifas Anuales | D46: ='Unique Care (Deducible Cero)'!G46 -> 7077 | E46: ='Unique Care (Deducible Cero)'!H46 -> 6271 | F46: ='Unique Care (Deducible Cero)'!I46 -> 5650 | G46: ='Unique Care (Deducible Cero)'!J46 -> 5257
A47: Tarifas Semestrales | D47: ='Unique Care (Deducible Cero)'!G61 -> 7497.12 | E47: ='Unique Care (Deducible Cero)'!H61 -> 6642.76 | F47: ='Unique Care (Deducible Cero)'!I61 -> 5984.5 | G47: ='Unique Care (Deducible Cero)'!J61 -> 5567.92
A48: Tarifas Trimestrales | D48: ='Unique Care (Deducible Cero)'!G76 -> 7777.2 | E48: ='Unique Care (Deducible Cero)'!H76 -> 6890.6 | F48: ='Unique Care (Deducible Cero)'!I76 -> 6207.5 | G48: ='Unique Care (Deducible Cero)'!J76 -> 5775.2
A49: Tarifas Mensuales | D49: ='Unique Care (Deducible Cero)'!G91 -> 7917.239972 | E49: ='Unique Care (Deducible Cero)'!H91 -> 7014.519975 | F49: ='Unique Care (Deducible Cero)'!I91 -> 6318.999978 | G49: ='Unique Care (Deducible Cero)'!J91 -> 5878.839979
G51: No incluyen maternidad
A52: DEDUCIBLES | D52: PLAN 1 | E52: PLAN 2 | F52: PLAN 3 | G52: PLAN 4 | H52: PLAN 5
A53: Dentro del pais de residencia | D53: 250 | E53: 1000 | F53: 2000 | G53: 5000 | H53: 10000
A54: Fuera del pais de residencia | D54: 1000 | E54: 2000 | F54: 3000 | G54: 5000 | H54: 10000
A55: Bupa Elite Care
A56: Tarifas Anuales | D56: ='Bupa Elite Care'!B40 -> 15943 | E56: ='Bupa Elite Care'!C40 -> 9910 | F56: ='Bupa Elite Care'!D40 -> 7989 | G56: ='Bupa Elite Care'!E40 -> 6384 | H56: ='Bupa Elite Care'!F40 -> 4889
A57: Tarifas Semestrales | D57: ='Bupa Elite Care'!B55 -> 16895.08 | E57: ='Bupa Elite Care'!C55 -> 10500.1 | F57: ='Bupa Elite Care'!D55 -> 8463.84 | G57: ='Bupa Elite Care'!E55 -> 6762.54 | H57: ='Bupa Elite Care'!F55 -> 5177.84
A58: Tarifas Trimestrales | D58: ='Bupa Elite Care'!B70 -> 17529.8 | E58: ='Bupa Elite Care'!C70 -> 5484.25 | F58: ='Bupa Elite Care'!D70 -> 4427.7 | G58: ='Bupa Elite Care'!E70 -> 3544.95 | H58: ='Bupa Elite Care'!F70 -> 2722.7
A59: Tarifas Mensuales | D59: ='Bupa Elite Care'!B84 -> 17847.15994 | E59: ='Bupa Elite Care'!C84 -> 11090.19996 | F59: ='Bupa Elite Care'!D84 -> 8938.679968 | G59: ='Bupa Elite Care'!E84 -> 7141.079975 | H59: ='Bupa Elite Care'!F84 -> 5466.679981

Sheet Comparacion de Beneficios (hidden)
A1: 2023 BUPA CARE COMPARACION DE BENEFICIOS

Sheet Tablas (hidden)
E1: FACTOR SEMESTRAL : | G1: 0.53 | Y1: Essential | Z1: Unique-Deductible: 0 | AA1: Unique | AB1: Elite
B2: REGIÓN | C2: ='INGRESO DE DATOS'!W14 -> REPÚBLICA DOMINICANA | E2: FACTOR TRIMESTRAL | G2: 0.275 | V2: TOTAL DISCOUNT | X2: ='INGRESO DE DATOS'!O54 -> 1 | Y2: ='INGRESO DE DATOS'!P54 -> 1 | Z2: ='INGRESO DE DATOS'!Q54 -> 1 | AA2: ='INGRESO DE DATOS'!R54 -> 1 | AB2: ='INGRESO DE DATOS'!S54 -> 1 | AC2: ='INGRESO DE DATOS'!T54 -> 1
E3: FACTOR MENSUAL | G3: 0.093333333 | Z3: ='INGRESO DE DATOS'!Q55 -> 1 | AA3: ='INGRESO DE DATOS'!R55 -> 1
Z4: ='INGRESO DE DATOS'!Q56 -> 1 | AA4: ='INGRESO DE DATOS'!R56 -> 1
Z5: ='INGRESO DE DATOS'!Q57 -> 1 | AA5: ='INGRESO DE DATOS'!R57 -> 1
A6: BUPA COMPLETE CARE | AA6: ='INGRESO DE DATOS'!R58 -> 1
A7: TARIFAS ANUALES
A9: EDAD | D9: CW1 | E9: CW2 | F9: CW3 | G9: CW4
A10: 18 | B10: 18-24 | D10: =R10 -> 0 | E10: =S10 -> 0 | F10: =T10 -> 0 | G10: =U10 -> 0 | L10: =DR!D9 -> 0 | M10: =DR!E9 -> 0 | N10: =DR!F9 -> 0 | O10: =DR!G9 -> 0 | R10: =L10*$Y$2 -> 0 | S10: =M10*$Y$2 -> 0 | T10: 0 | U10: 0
A11: 25 | B11: 25-29 | D11: 0 | E11: 0 | F11: 0 | G11: 0 | L11: =DR!D10 -> 0 | M11: =DR!E10 -> 0 | N11: =DR!F10 -> 0 | O11: =DR!G10 -> 0 | R11: =L11*$Y$2 -> 0 | S11: =M11*$Y$2 -> 0 | T11: =N11*$Y$2 -> 0 | U11: =O11*$Y$2 -> 0
A12: 30 | B12: 30-34 | D12: 0 | E12: 0 | F12: 0 | G12: 0 | L12: =DR!D11 -> 0 | M12: =DR!E11 -> 0 | N12: =DR!F11 -> 0 | O12: =DR!G11 -> 0 | R12: 0 | S12: 0 | T12: 0 | U12: 0
A13: 35 | B13: 35-39 | D13: 0 | E13: 0 | F13: 0 | G13: 0 | L13: =DR!D12 -> 0 | M13: =DR!E12 -> 0 | N13: =DR!F12 -> 0 | O13: =DR!G12 -> 0 | R13: 0 | S13: 0 | T13: 0 | U13: 0
A14: 40 | B14: 40-44 | D14: 0 | E14: 0 | F14: 0 | G14: 0 | L14: =DR!D13 -> 0 | M14: =DR!E13 -> 0 | N14: =DR!F13 -> 0 | O14: =DR!G13 -> 0 | R14: 0 | S14: 0 | T14: 0 | U14: 0
A15: 45 | B15: 45-49 | D15: 0 | E15: 0 | F15: 0 | G15: 0 | L15: =DR!D14 -> 0 | M15: =DR!E14 -> 0 | N15: =DR!F14 -> 0 | O15: =DR!G14 -> 0 | R15: 0 | S15: 0 | T15: 0 | U15: 0
A16: 50 | B16: 50-54 | D16: 0 | E16: 0 | F16: 0 | G16: 0 | L16: =DR!D15 -> 0 | M16: =DR!E15 -> 0 | N16: =DR!F15 -> 0 | O16: =DR!G15 -> 0 | R16: 0 | S16: 0 | T16: 0 | U16: 0
A17: 55 | B17: 55-59 | D17: 0 | E17: 0 | F17: 0 | G17: 0 | L17: =DR!D16 -> 0 | M17: =DR!E16 -> 0 | N17: =DR!F16 -> 0 | O17: =DR!G16 -> 0 | R17: 0 | S17: 0 | T17: 0 | U17: 0
A18: 60 | B18: 60 | D18: 0 | E18: 0 | F18: 0 | G18: 0 | L18: =DR!D17 -> 0 | M18: =DR!E17 -> 0 | N18: =DR!F17 -> 0 | O18: =DR!G17 -> 0 | R18: 0 | S18: 0 | T18: 0 | U18: 0
A19: 61 | B19: 61 | D19: 0 | E19: 0 | F19: 0 | G19: 0 | L19: =DR!D18 -> 0 | M19: =DR!E18 -> 0 | N19: =DR!F18 -> 0 | O19: =DR!G18 -> 0 | R19: 0 | S19: 0 | T19: 0 | U19: 0
A20: 62 | B20: 62 | D20: 0 | E20: 0 | F20: 0 | G20: 0 | L20: =DR!D19 -> 0 | M20: =DR!E19 -> 0 | N20: =DR!F19 -> 0 | O20: =DR!G19 -> 0 | R20: 0 | S20: 0 | T20: 0 | U20: 0
A21: 63 | B21: 63 | D21: 0 | E21: 0 | F21: 0 | G21: 0 | L21: =DR!D20 -> 0 | M21: =DR!E20 -> 0 | N21: =DR!F20 -> 0 | O21: =DR!G20 -> 0 | R21: 0 | S21: 0 | T21: 0 | U21: 0
A22: 64 | B22: 64 | D22: 0 | E22: 0 | F22: 0 | G22: 0 | L22: =DR!D21 -> 0 | M22: =DR!E21 -> 0 | N22: =DR!F21 -> 0 | O22: =DR!G21 -> 0 | R22: 0 | S22: 0 | T22: 0 | U22: 0
A23: 65 | B23: 65 | D23: 0 | E23: 0 | F23: 0 | G23: 0 | L23: =DR!D22 -> 0 | M23: =DR!E22 -> 0 | N23: =DR!F22 -> 0 | O23: =DR!G22 -> 0 | R23: 0 | S23: 0 | T23: 0 | U23: 0
A24: 66 | B24: 66 | D24: 0 | E24: 0 | F24: 0 | G24: 0 | L24: =DR!D23 -> 0 | M24: =DR!E23 -> 0 | N24: =DR!F23 -> 0 | O24: =DR!G23 -> 0 | R24: 0 | S24: 0 | T24: 0 | U24: 0
A25: 67 | B25: 67 | D25: 0 | E25: 0 | F25: 0 | G25: 0 | L25: =DR!D24 -> 0 | M25: =DR!E24 -> 0 | N25: =DR!F24 -> 0 | O25: =DR!G24 -> 0 | R25: 0 | S25: 0 | T25: 0 | U25: 0
A26: 68 | B26: 68 | D26: 0 | E26: 0 | F26: 0 | G26: 0 | L26: =DR!D25 -> 0 | M26: =DR!E25 -> 0 | N26: =DR!F25 -> 0 | O26: =DR!G25 -> 0 | R26: 0 | S26: 0 | T26: 0 | U26: 0
A27: 69 | B27: 69 | D27: 0 | E27: 0 | F27: 0 | G27: 0 | L27: =DR!D26 -> 0 | M27: =DR!E26 -> 0 | N27: =DR!F26 -> 0 | O27: =DR!G26 -> 0 | R27: 0 | S27: 0 | T27: 0 | U27: 0
A28: 70 | B28: 70 | D28: 0 | E28: 0 | F28: 0 | G28: 0 | L28: =DR!D27 -> 0 | M28: =DR!E27 -> 0 | N28: =DR!F27 -> 0 | O28: =DR!G27 -> 0 | R28: 0 | S28: 0 | T28: 0 | U28: 0
A29: 71 | B29: 71 | D29: 0 | E29: 0 | F29: 0 | G29: 0 | L29: =DR!D28 -> 0 | M29: =DR!E28 -> 0 | N29: =DR!F28 -> 0 | O29: =DR!G28 -> 0 | R29: 0 | S29: 0 | T29: 0 | U29: 0
A30: 72 | B30: 72 | D30: 0 | E30: 0 | F30: 0 | G30: 0 | L30: =DR!D29 -> 0 | M30: =DR!E29 -> 0 | N30: =DR!F29 -> 0 | O30: =DR!G29 -> 0 | R30: 0 | S30: 0 | T30: 0 | U30: 0
A31: 73 | B31: 73 | D31: 0 | E31: 0 | F31: 0 | G31: 0 | L31: =DR!D30 -> 0 | M31: =DR!E30 -> 0 | N31: =DR!F30 -> 0 | O31: =DR!G30 -> 0 | R31: 0 | S31: 0 | T31: 0 | U31: 0
A32: 74 | B32: 74 | D32: 0 | E32: 0 | F32: 0 | G32: 0 | L32: =DR!D31 -> 0 | M32: =DR!E31 -> 0 | N32: =DR!F31 -> 0 | O32: =DR!G31 -> 0 | R32: 0 | S32: 0 | T32: 0 | U32: 0
A33: 75 | B33: 75+ | D33: 0 | E33: 0 | F33: 0 | G33: 0 | L33: =DR!D32 -> 0 | M33: =DR!E32 -> 0 | N33: =DR!F32 -> 0 | O33: =DR!G32 -> 0 | R33: 0 | S33: 0 | T33: 0 | U33: 0
A34: 1 | B34: 1 Child | D34: 0 | E34: 0 | F34: 0 | G34: 0 | L34: =DR!D33 -> 0 | M34: =DR!E33 -> 0 | N34: =DR!F33 -> 0 | O34: =DR!G33 -> 0 | R34: 0 | S34: 0 | T34: 0 | U34: 0
A35: 2 | B35: 2 Children | D35: 0 | E35: 0 | F35: 0 | G35: 0 | L35: =DR!D34 -> 0 | M35: =DR!E34 -> 0 | N35: =DR!F34 -> 0 | O35: =DR!G34 -> 0 | R35: 0 | S35: 0 | T35: 0 | U35: 0
A36: 3 | B36: 3+ Children | D36: 0 | E36: 0 | F36: 0 | G36: 0 | L36: =DR!D35 -> 0 | M36: =DR!E35 -> 0 | N36: =DR!F35 -> 0 | O36: =DR!G35 -> 0 | R36: 0 | S36: 0 | T36: 0 | U36: 0
A37: 1 | B37: Rider Comp. Maternidad | D37: =L37 -> 0 | E37: 0 | F37: 225 | G37: 225 | L37: 0 | M37: 0 | N37: 225 | O37: 225
A38: 1 | B38: Transplante de organos | D38: 0 | E38: 0 | F38: 0 | G38: 0 | L38: 0 | M38: 0 | N38: 0 | O38: 0
D39: 0 | E39: 0 | F39: 0 | G39: 0
A42: TARIFAS SEMESTRALES
A44: EDAD | D44: CW1 | E44: CW2 | F44: CW3 | G44: CW4
A45: 18 | B45: 18-24 | D45: =D10*$G$1 -> 0 | E45: 0 | F45: 0 | G45: 0
A46: 25 | B46: 25-29 | D46: 0 | E46: 0 | F46: 0 | G46: 0
A47: 30 | B47: 30-34 | D47: 0 | E47: 0 | F47: 0 | G47: 0
A48: 35 | B48: 35-39 | D48: 0 | E48: 0 | F48: 0 | G48: 0
A49: 40 | B49: 40-44 | D49: 0 | E49: 0 | F49: 0 | G49: 0
A50: 45 | B50: 45-49 | D50: 0 | E50: 0 | F50: 0 | G50: 0
A51: 50 | B51: 50-54 | D51: 0 | E51: 0 | F51: 0 | G51: 0
A52: 55 | B52: 55-59 | D52: 0 | E52: 0 | F52: 0 | G52: 0
A53: 60 | B53: 60 | D53: 0 | E53: 0 | F53: 0 | G53: 0
A54: 61 | B54: 61 | D54: 0 | E54: 0 | F54: 0 | G54: 0
A55: 62 | B55: 62 | D55: 0 | E55: 0 | F55: 0 | G55: 0
A56: 63 | B56: 63 | D56: 0 | E56: 0 | F56: 0 | G56: 0
A57: 64 | B57: 64 | D57: 0 | E57: 0 | F57: 0 | G57: 0
A58: 65 | B58: 65 | D58: 0 | E58: 0 | F58: 0 | G58: 0
A59: 66 | B59: 66 | D59: 0 | E59: 0 | F59: 0 | G59: 0
A60: 67 | B60: 67 | D60: 0 | E60: 0 | F60: 0 | G60: 0
A61: 68 | B61: 68 | D61: 0 | E61: 0 | F61: 0 | G61: 0
A62: 69 | B62: 69 | D62: 0 | E62: 0 | F62: 0 | G62: 0
A63: 70 | B63: 70 | D63: 0 | E63: 0 | F63: 0 | G63: 0
A64: 71 | B64: 71 | D64: 0 | E64: 0 | F64: 0 | G64: 0
A65: 72 | B65: 72 | D65: 0 | E65: 0 | F65: 0 | G65: 0
A66: 73 | B66: 73 | D66: 0 | E66: 0 | F66: 0 | G66: 0
A67: 74 | B67: 74 | D67: 0 | E67: 0 | F67: 0 | G67: 0
A68: 75 | B68: 75+ | D68: 0 | E68: 0 | F68: 0 | G68: 0
A69: 1 | B69: 1 Child | D69: 0 | E69: 0 | F69: 0 | G69: 0
A70: 2 | B70: 2 Children | D70: 0 | E70: 0 | F70: 0 | G70: 0
A71: 3 | B71: 3+ Children | D71: 0 | E71: 0 | F71: 0 | G71: 0
A72: 1 | B72: Rider Comp. Maternidad | D72: 0 | E72: 0 | F72: 119.25 | G72: 119.25
A73: 1 | B73: Transplante de organos | D73: 0 | E73: 0 | F73: 0 | G73: 0
A77: TARIFAS TRIMESTRALES
A78: EDAD | D78: CW1 | E78: CW2 | F78: CW3 | G78: CW4
A79: 18 | B79: 18-24 | D79: =D10*$G$2 -> 0 | E79: 0 | F79: 0 | G79: 0
A80: 25 | B80: 25-29 | D80: 0 | E80: 0 | F80: 0 | G80: 0
A81: 30 | B81: 30-34 | D81: 0 | E81: 0 | F81: 0 | G81: 0
A82: 35 | B82: 35-39 | D82: 0 | E82: 0 | F82: 0 | G82: 0
A83: 40 | B83: 40-44 | D83: 0 | E83: 0 | F83: 0 | G83: 0
A84: 45 | B84: 45-49 | D84: 0 | E84: 0 | F84: 0 | G84: 0
A85: 50 | B85: 50-54 | D85: 0 | E85: 0 | F85: 0 | G85: 0
A86: 55 | B86: 55-59 | D86: 0 | E86: 0 | F86: 0 | G86: 0
A87: 60 | B87: 60 | D87: 0 | E87: 0 | F87: 0 | G87: 0
A88: 61 | B88: 61 | D88: 0 | E88: 0 | F88: 0 | G88: 0
A89: 62 | B89: 62 | D89: 0 | E89: 0 | F89: 0 | G89: 0
A90: 63 | B90: 63 | D90: 0 | E90: 0 | F90: 0 | G90: 0
A91: 64 | B91: 64 | D91: 0 | E91: 0 | F91: 0 | G91: 0
A92: 65 | B92: 65 | D92: 0 | E92: 0 | F92: 0 | G92: 0
A93: 66 | B93: 66 | D93: 0 | E93: 0 | F93: 0 | G93: 0
A94: 67 | B94: 67 | D94: 0 | E94: 0 | F94: 0 | G94: 0
A95: 68 | B95: 68 | D95: 0 | E95: 0 | F95: 0 | G95: 0
A96: 69 | B96: 69 | D96: 0 | E96: 0 | F96: 0 | G96: 0
A97: 70 | B97: 70 | D97: 0 | E97: 0 | F97: 0 | G97: 0
A98: 71 | B98: 71 | D98: 0 | E98: 0 | F98: 0 | G98: 0
A99: 72 | B99: 72 | D99: 0 | E99: 0 | F99: 0 | G99: 0
A100: 73 | B100: 73 | D100: 0 | E100: 0 | F100: 0 | G100: 0
A101: 74 | B101: 74 | D101: 0 | E101: 0 | F101: 0 | G101: 0
A102: 75 | B102: 75+ | D102: 0 | E102: 0 | F102: 0 | G102: 0
A103: 1 | B103: 1 Child | D103: 0 | E103: 0 | F103: 0 | G103: 0
A104: 2 | B104: 2 Children | D104: 0 | E104: 0 | F104: 0 | G104: 0
A105: 3 | B105: 3+ Children | D105: 0 | E105: 0 | F105: 0 | G105: 0
A106: 1 | B106: Rider Comp. Maternidad | D106: 0 | E106: 0 | F106: 61.875 | G106: 61.875
A107: 1 | B107: Transplante de organos | D107: 0 | E107: 0 | F107: 0 | G107: 0
D108: 0 | E108: 0 | F108: 0 | G108: 0
A110: TARIFAS MENSUALES
A111: EDAD | D111: CW1 | E111: CW2 | F111: CW3 | G111: CW4
A112: 18 | B112: 18-24 | D112: =D10*$G$3 -> 0 | E112: 0 | F112: 0 | G112: 0
A113: 25 | B113: 25-29 | D113: 0 | E113: 0 | F113: 0 | G113: 0
A114: 30 | B114: 30-34 | D114: 0 | E114: 0 | F114: 0 | G114: 0
A115: 35 | B115: 35-39 | D115: 0 | E115: 0 | F115: 0 | G115: 0
A116: 40 | B116: 40-44 | D116: 0 | E116: 0 | F116: 0 | G116: 0
A117: 45 | B117: 45-49 | D117: 0 | E117: 0 | F117: 0 | G117: 0
A118: 50 | B118: 50-54 | D118: 0 | E118: 0 | F118: 0 | G118: 0
A119: 55 | B119: 55-59 | D119: 0 | E119: 0 | F119: 0 | G119: 0
A120: 60 | B120: 60 | D120: 0 | E120: 0 | F120: 0 | G120: 0
A121: 61 | B121: 61 | D121: 0 | E121: 0 | F121: 0 | G121: 0
A122: 62 | B122: 62 | D122: 0 | E122: 0 | F122: 0 | G122: 0
A123: 63 | B123: 63 | D123: 0 | E123: 0 | F123: 0 | G123: 0
A124: 64 | B124: 64 | D124: 0 | E124: 0 | F124: 0 | G124: 0
A125: 65 | B125: 65 | D125: 0 | E125: 0 | F125: 0 | G125: 0
A126: 66 | B126: 66 | D126: 0 | E126: 0 | F126: 0 | G126: 0
A127: 67 | B127: 67 | D127: 0 | E127: 0 | F127: 0 | G127: 0
A128: 68 | B128: 68 | D128: 0 | E128: 0 | F128: 0 | G128: 0
A129: 69 | B129: 69 | D129: 0 | E129: 0 | F129: 0 | G129: 0
A130: 70 | B130: 70 | D130: 0 | E130: 0 | F130: 0 | G130: 0
A131: 71 | B131: 71 | D131: 0 | E131: 0 | F131: 0 | G131: 0
A132: 72 | B132: 72 | D132: 0 | E132: 0 | F132: 0 | G132: 0
A133: 73 | B133: 73 | D133: 0 | E133: 0 | F133: 0 | G133: 0
A134: 74 | B134: 74 | D134: 0 | E134: 0 | F134: 0 | G134: 0
A135: 75 | B135: 75+ | D135: 0 | E135: 0 | F135: 0 | G135: 0
A136: 1 | B136: 1 Child | D136: 0 | E136: 0 | F136: 0 | G136: 0
A137: 2 | B137: 2 Children | D137: 0 | E137: 0 | F137: 0 | G137: 0
A138: 3 | B138: 3+ Children | D138: 0 | E138: 0 | F138: 0 | G138: 0
A139: 1 | B139: Rider Comp. Maternidad | D139: 0 | E139: 0 | F139: 20.99999993 | G139: 20.99999993
A140: 1 | B140: Transplante de organos | D140: 0 | E140: 0 | F140: 0 | G140: 0
D141: 0 | E141: 0 | F141: 0 | G141: 0
A146: BUPA SECURE CARE
A147: TARIFAS ANUALES
A149: EDAD | D149: SE2 | E149: SE3 | F149: SE4 | G149: SE5 | H149: SE6
A150: 18 | B150: 18-24 | D150: =R150 -> 0 | E150: =S150 -> 0 | F150: 0 | G150: 0 | H150: 0 | L150: =DR!D48 -> 0 | M150: =DR!E48 -> 0 | N150: =DR!F48 -> 0 | O150: =DR!G48 -> 0 | P150: =DR!H48 -> 0 | R150: =L150*$AA$2 -> 0 | S150: =M150*$AA$2 -> 0 | T150: =N150*$AA$2 -> 0 | U150: =O150*$AA$2 -> 0 | V150: =P150*$AA$2 -> 0
A151: 25 | B151: 25-29 | D151: =R151 -> 0 | E151: =S151 -> 0 | F151: =T151 -> 0 | G151: =U151 -> 0 | H151: =V151 -> 0 | L151: =DR!D49 -> 0 | M151: =DR!E49 -> 0 | N151: =DR!F49 -> 0 | O151: =DR!G49 -> 0 | P151: =DR!H49 -> 0 | R151: 0 | S151: 0 | T151: 0 | U151: 0 | V151: 0
A152: 30 | B152: 30-34 | D152: 0 | E152: 0 | F152: 0 | G152: 0 | H152: 0 | L152: =DR!D50 -> 0 | M152: =DR!E50 -> 0 | N152: =DR!F50 -> 0 | O152: =DR!G50 -> 0 | P152: =DR!H50 -> 0 | R152: 0 | S152: 0 | T152: 0 | U152: 0 | V152: 0
A153: 35 | B153: 35-39 | D153: 0 | E153: 0 | F153: 0 | G153: 0 | H153: 0 | L153: =DR!D51 -> 0 | M153: =DR!E51 -> 0 | N153: =DR!F51 -> 0 | O153: =DR!G51 -> 0 | P153: =DR!H51 -> 0 | R153: 0 | S153: 0 | T153: 0 | U153: 0 | V153: 0
A154: 40 | B154: 40-44 | D154: 0 | E154: 0 | F154: 0 | G154: 0 | H154: 0 | L154: =DR!D52 -> 0 | M154: =DR!E52 -> 0 | N154: =DR!F52 -> 0 | O154: =DR!G52 -> 0 | P154: =DR!H52 -> 0 | R154: 0 | S154: 0 | T154: 0 | U154: 0 | V154: 0
A155: 45 | B155: 45-49 | D155: 0 | E155: 0 | F155: 0 | G155: 0 | H155: 0 | L155: =DR!D53 -> 0 | M155: =DR!E53 -> 0 | N155: =DR!F53 -> 0 | O155: =DR!G53 -> 0 | P155: =DR!H53 -> 0 | R155: 0 | S155: 0 | T155: 0 | U155: 0 | V155: 0
A156: 50 | B156: 50-54 | D156: 0 | E156: 0 | F156: 0 | G156: 0 | H156: 0 | L156: =DR!D54 -> 0 | M156: =DR!E54 -> 0 | N156: =DR!F54 -> 0 | O156: =DR!G54 -> 0 | P156: =DR!H54 -> 0 | R156: 0 | S156: 0 | T156: 0 | U156: 0 | V156: 0
A157: 55 | B157: 55-59 | D157: 0 | E157: 0 | F157: 0 | G157: 0 | H157: 0 | L157: =DR!D55 -> 0 | M157: =DR!E55 -> 0 | N157: =DR!F55 -> 0 | O157: =DR!G55 -> 0 | P157: =DR!H55 -> 0 | R157: 0 | S157: 0 | T157: 0 | U157: 0 | V157: 0
A158: 60 | B158: 60 | D158: 0 | E158: 0 | F158: 0 | G158: 0 | H158: 0 | L158: =DR!D56 -> 0 | M158: =DR!E56 -> 0 | N158: =DR!F56 -> 0 | O158: =DR!G56 -> 0 | P158: =DR!H56 -> 0 | R158: 0 | S158: 0 | T158: 0 | U158: 0 | V158: 0
A159: 61 | B159: 61 | D159: 0 | E159: 0 | F159: 0 | G159: 0 | H159: 0 | L159: =DR!D57 -> 0 | M159: =DR!E57 -> 0 | N159: =DR!F57 -> 0 | O159: =DR!G57 -> 0 | P159: =DR!H57 -> 0 | R159: 0 | S159: 0 | T159: 0 | U159: 0 | V159: 0
A160: 62 | B160: 62 | D160: 0 | E160: 0 | F160: 0 | G160: 0 | H160: 0 | L160: =DR!D58 -> 0 | M160: =DR!E58 -> 0 | N160: =DR!F58 -> 0 | O160: =DR!G58 -> 0 | P160: =DR!H58 -> 0 | R160: 0 | S160: 0 | T160: 0 | U160: 0 | V160: 0
A161: 63 | B161: 63 | D161: 0 | E161: 0 | F161: 0 | G161: 0 | H161: 0 | L161: =DR!D59 -> 0 | M161: =DR!E59 -> 0 | N161: =DR!F59 -> 0 | O161: =DR!G59 -> 0 | P161: =DR!H59 -> 0 | R161: 0 | S161: 0 | T161: 0 | U161: 0 | V161: 0
A162: 64 | B162: 64 | D162: 0 | E162: 0 | F162: 0 | G162: 0 | H162: 0 | L162: =DR!D60 -> 0 | M162: =DR!E60 -> 0 | N162: =DR!F60 -> 0 | O162: =DR!G60 -> 0 | P162: =DR!H60 -> 0 | R162: 0 | S162: 0 | T162: 0 | U162: 0 | V162: 0
A163: 65 | B163: 65 | D163: 0 | E163: 0 | F163: 0 | G163: 0 | H163: 0 | L163: =DR!D61 -> 0 | M163: =DR!E61 -> 0 | N163: =DR!F61 -> 0 | O163: =DR!G61 -> 0 | P163: =DR!H61 -> 0 | R163: 0 | S163: 0 | T163: 0 | U163: 0 | V163: 0
A164: 66 | B164: 66 | D164: 0 | E164: 0 | F164: 0 | G164: 0 | H164: 0 | L164: =DR!D62 -> 0 | M164: =DR!E62 -> 0 | N164: =DR!F62 -> 0 | O164: =DR!G62 -> 0 | P164: =DR!H62 -> 0 | R164: 0 | S164: 0 | T164: 0 | U164: 0 | V164: 0
A165: 67 | B165: 67 | D165: 0 | E165: 0 | F165: 0 | G165: 0 | H165: 0 | L165: =DR!D63 -> 0 | M165: =DR!E63 -> 0 | N165: =DR!F63 -> 0 | O165: =DR!G63 -> 0 | P165: =DR!H63 -> 0 | R165: 0 | S165: 0 | T165: 0 | U165: 0 | V165: 0
A166: 68 | B166: 68 | D166: 0 | E166: 0 | F166: 0 | G166: 0 | H166: 0 | L166: =DR!D64 -> 0 | M166: =DR!E64 -> 0 | N166: =DR!F64 -> 0 | O166: =DR!G64 -> 0 | P166: =DR!H64 -> 0 | R166: 0 | S166: 0 | T166: 0 | U166: 0 | V166: 0
A167: 69 | B167: 69 | D167: 0 | E167: 0 | F167: 0 | G167: 0 | H167: 0 | L167: =DR!D65 -> 0 | M167: =DR!E65 -> 0 | N167: =DR!F65 -> 0 | O167: =DR!G65 -> 0 | P167: =DR!H65 -> 0 | R167: 0 | S167: 0 | T167: 0 | U167: 0 | V167: 0
A168: 70 | B168: 70 | D168: 0 | E168: 0 | F168: 0 | G168: 0 | H168: 0 | L168: =DR!D66 -> 0 | M168: =DR!E66 -> 0 | N168: =DR!F66 -> 0 | O168: =DR!G66 -> 0 | P168: =DR!H66 -> 0 | R168: 0 | S168: 0 | T168: 0 | U168: 0 | V168: 0
A169: 71 | B169: 71 | D169: 0 | E169: 0 | F169: 0 | G169: 0 | H169: 0 | L169: =DR!D67 -> 0 | M169: =DR!E67 -> 0 | N169: =DR!F67 -> 0 | O169: =DR!G67 -> 0 | P169: =DR!H67 -> 0 | R169: 0 | S169: 0 | T169: 0 | U169: 0 | V169: 0
A170: 72 | B170: 72 | D170: 0 | E170: 0 | F170: 0 | G170: 0 | H170: 0 | L170: =DR!D68 -> 0 | M170: =DR!E68 -> 0 | N170: =DR!F68 -> 0 | O170: =DR!G68 -> 0 | P170: =DR!H68 -> 0 | R170: 0 | S170: 0 | T170: 0 | U170: 0 | V170: 0
A171: 73 | B171: 73 | D171: 0 | E171: 0 | F171: 0 | G171: 0 | H171: 0 | L171: =DR!D69 -> 0 | M171: =DR!E69 -> 0 | N171: =DR!F69 -> 0 | O171: =DR!G69 -> 0 | P171: =DR!H69 -> 0 | R171: 0 | S171: 0 | T171: 0 | U171: 0 | V171: 0
A172: 74 | B172: 74 | D172: 0 | E172: 0 | F172: 0 | G172: 0 | H172: 0 | L172: =DR!D70 -> 0 | M172: =DR!E70 -> 0 | N172: =DR!F70 -> 0 | O172: =DR!G70 -> 0 | P172: =DR!H70 -> 0 | R172: 0 | S172: 0 | T172: 0 | U172: 0 | V172: 0
A173: 75 | B173: 75+ | D173: 0 | E173: 0 | F173: 0 | G173: 0 | H173: 0 | L173: =DR!D71 -> 0 | M173: =DR!E71 -> 0 | N173: =DR!F71 -> 0 | O173: =DR!G71 -> 0 | P173: =DR!H71 -> 0 | R173: 0 | S173: 0 | T173: 0 | U173: 0 | V173: 0
A174: 1 | B174: 1 Child | D174: 0 | E174: 0 | F174: 0 | G174: 0 | H174: 0 | L174: =DR!D72 -> 0 | M174: =DR!E72 -> 0 | N174: =DR!F72 -> 0 | O174: =DR!G72 -> 0 | P174: =DR!H72 -> 0 | R174: 0 | S174: 0 | T174: 0 | U174: 0 | V174: 0
A175: 2 | B175: 2 Children | D175: 0 | E175: 0 | F175: 0 | G175: 0 | H175: 0 | L175: =DR!D73 -> 0 | M175: =DR!E73 -> 0 | N175: =DR!F73 -> 0 | O175: =DR!G73 -> 0 | P175: =DR!H73 -> 0 | R175: 0 | S175: 0 | T175: 0 | U175: 0 | V175: 0
A176: 3 | B176: 3+ Children | D176: =R176 -> 0 | E176: =S176 -> 0 | F176: =T176 -> 0 | G176: =U176 -> 0 | H176: =V176 -> 0 | L176: =DR!D74 -> 0 | M176: =DR!E74 -> 0 | N176: =DR!F74 -> 0 | O176: =DR!G74 -> 0 | P176: =DR!H74 -> 0 | R176: 0 | S176: 0 | T176: 0 | U176: 0 | V176: 0
A177: 1 | B177: Rider Comp. Maternidad | D177: =L177 -> 225 | E177: =M177 -> 225 | F177: 225 | G177: 225 | H177: 225 | L177: 225 | M177: 225 | N177: 225 | O177: 225 | P177: 225
A178: 1 | B178: Transplante de organos | D178: =L178 -> 300 | E178: =M178 -> 300 | F178: =N178 -> 300 | G178: =O178 -> 300 | H178: =P178 -> 300 | L178: 300 | M178: 300 | N178: 300 | O178: 300 | P178: 300
A181: TARIFAS SEMESTRALES
A183: EDAD | D183: SE2 | E183: SE3 | F183: SE4 | G183: SE5 | H183: SE6
A184: 18 | B184: 18-24 | D184: =D150*$G$1 -> 0 | E184: 0 | F184: 0 | G184: 0 | H184: 0
A185: 25 | B185: 25-29 | D185: 0 | E185: 0 | F185: 0 | G185: 0 | H185: 0
A186: 30 | B186: 30-34 | D186: 0 | E186: 0 | F186: 0 | G186: 0 | H186: 0
A187: 35 | B187: 35-39 | D187: 0 | E187: 0 | F187: 0 | G187: 0 | H187: 0
A188: 40 | B188: 40-44 | D188: 0 | E188: 0 | F188: 0 | G188: 0 | H188: 0
A189: 45 | B189: 45-49 | D189: 0 | E189: 0 | F189: 0 | G189: 0 | H189: 0
A190: 50 | B190: 50-54 | D190: 0 | E190: 0 | F190: 0 | G190: 0 | H190: 0
A191: 55 | B191: 55-59 | D191: 0 | E191: 0 | F191: 0 | G191: 0 | H191: 0
A192: 60 | B192: 60 | D192: 0 | E192: 0 | F192: 0 | G192: 0 | H192: 0
A193: 61 | B193: 61 | D193: 0 | E193: 0 | F193: 0 | G193: 0 | H193: 0
A194: 62 | B194: 62 | D194: =D160*$G$1 -> 0 | E194: 0 | F194: 0 | G194: 0 | H194: 0
A195: 63 | B195: 63 | D195: 0 | E195: 0 | F195: 0 | G195: 0 | H195: 0
A196: 64 | B196: 64 | D196: 0 | E196: 0 | F196: 0 | G196: 0 | H196: 0
A197: 65 | B197: 65 | D197: 0 | E197: 0 | F197: 0 | G197: 0 | H197: 0
A198: 66 | B198: 66 | D198: 0 | E198: 0 | F198: 0 | G198: 0 | H198: 0
A199: 67 | B199: 67 | D199: 0 | E199: 0 | F199: 0 | G199: 0 | H199: 0
A200: 68 | B200: 68 | D200: 0 | E200: 0 | F200: 0 | G200: 0 | H200: 0
A201: 69 | B201: 69 | D201: 0 | E201: 0 | F201: 0 | G201: 0 | H201: 0
A202: 70 | B202: 70 | D202: 0 | E202: 0 | F202: 0 | G202: 0 | H202: 0
A203: 71 | B203: 71 | D203: 0 | E203: 0 | F203: 0 | G203: 0 | H203: 0
A204: 72 | B204: 72 | D204: =D170*$G$1 -> 0 | E204: 0 | F204: 0 | G204: 0 | H204: 0
A205: 73 | B205: 73 | D205: 0 | E205: 0 | F205: 0 | G205: 0 | H205: 0
A206: 74 | B206: 74 | D206: 0 | E206: 0 | F206: 0 | G206: 0 | H206: 0
A207: 75 | B207: 75+ | D207: 0 | E207: 0 | F207: 0 | G207: 0 | H207: 0
A208: 1 | B208: 1 Child | D208: 0 | E208: 0 | F208: 0 | G208: 0 | H208: 0
A209: 2 | B209: 2 Children | D209: 0 | E209: 0 | F209: 0 | G209: 0 | H209: 0
A210: 3 | B210: 3+ Children | D210: 0 | E210: 0 | F210: 0 | G210: 0 | H210: 0
A211: 1 | B211: Rider Comp. Maternidad | D211: 119.25 | E211: 119.25 | F211: 119.25 | G211: 119.25 | H211: 119.25
A212: 1 | B212: Transplante de organos | D212: 159 | E212: 159 | F212: 159 | G212: 159 | H212: 159
A216: TARIFAS TRIMESTRALES
A218: EDAD | D218: SE2 | E218: SE3 | F218: SE4 | G218: SE5 | H218: SE6
A219: 18 | B219: 18-24 | D219: =D150*$G$2 -> 0 | E219: 0 | F219: 0 | G219: 0 | H219: 0
A220: 25 | B220: 25-29 | D220: 0 | E220: 0 | F220: 0 | G220: 0 | H220: 0
... 1167 more rows

Sheet DR (hidden)
K1: D1 | L1: D2 | M1: D3 | N1: D4 | O1: D5 | P1: D6
B2: REGIÓN | C2: ='INGRESO DE DATOS'!W14 -> REPÚBLICA DOMINICANA | E2: FACTOR SEMESTRAL : | G2: 0.53 | I2: NEW BUSINESS DISCUOUNTS | K2: ='INGRESO DE DATOS'!O54 -> 1 | L2: ='INGRESO DE DATOS'!P54 -> 1 | M2: ='INGRESO DE DATOS'!Q54 -> 1 | N2: ='INGRESO DE DATOS'!R54 -> 1 | O2: ='INGRESO DE DATOS'!S54 -> 1 | P2: ='INGRESO DE DATOS'!T54 -> 1
A5: BUPA COMPLETE CARE
A6: TARIFAS ANUALES
A8: EDAD | C8: CW1 | D8: CW2 | E8: CW3 | F8: CW4 | G8: CW5 | H8: CW6
A9: 18 | B9: 18-24
A10: 25 | B10: 25-29
A11: 30 | B11: 30-34
A12: 35 | B12: 35-39
A13: 40 | B13: 40-44
A14: 45 | B14: 45-49
A15: 50 | B15: 50-54
A16: 55 | B16: 55-59
A17: 60 | B17: 60
A18: 61 | B18: 61
A19: 62 | B19: 62
A20: 63 | B20: 63
A21: 64 | B21: 64
A22: 65 | B22: 65
A23: 66 | B23: 66
A24: 67 | B24: 67
A25: 68 | B25: 68
A26: 69 | B26: 69
A27: 70 | B27: 70
A28: 71 | B28: 71
A29: 72 | B29: 72
A30: 73 | B30: 73
A31: 74 | B31: 74
A32: 75 | B32: 75+
A33: 1 | B33: 1 Child
A34: 2 | B34: 2 Children
A35: 3 | B35: 3+ Children
A36: 1 | B36: Rider Comp. Maternidad
A37: 1 | B37: Transplante de organos
A44: BUPA SECURE CARE
A45: TARIFAS ANUALES
A47: EDAD | D47: SE2 | E47: SE3 | F47: SE4 | G47: SE5 | H47: SE6
A48: 18 | B48: 18-24
A49: 25 | B49: 25-29
A50: 30 | B50: 30-34
A51: 35 | B51: 35-39
A52: 40 | B52: 40-44
A53: 45 | B53: 45-49
A54: 50 | B54: 50-54
A55: 55 | B55: 55-59
A56: 60 | B56: 60
A57: 61 | B57: 61
A58: 62 | B58: 62
A59: 63 | B59: 63
A60: 64 | B60: 64
A61: 65 | B61: 65
A62: 66 | B62: 66
A63: 67 | B63: 67
A64: 68 | B64: 68
A65: 69 | B65: 69
A66: 70 | B66: 70
A67: 71 | B67: 71
A68: 72 | B68: 72
A69: 73 | B69: 73
A70: 74 | B70: 74
A71: 75 | B71: 75+
A72: 1 | B72: 1 Child
A73: 2 | B73: 2 Children
A74: 3 | B74: 3+ Children
A75: 1 | B75: Rider Comp. Maternidad
A76: 1 | B76: Transplante de organos
A82: BUPA ESSENTIAL CARE
A83: TARIFAS ANUALES
A85: EDAD | C85: ET1 | D85: ET2 | E85: ET3 | F85: ET4 | G85: ET5 | H85: ET6
A86: 18 | C86: 1719 | D86: 1561 | E86: 1417 | F86: 1222
A87: 19 | C87: 1719 | D87: 1561 | E87: 1417 | F87: 1222
A88: 20 | C88: 1719 | D88: 1561 | E88: 1417 | F88: 1222
A89: 21 | C89: 1719 | D89: 1561 | E89: 1417 | F89: 1222
A90: 22 | C90: 1719 | D90: 1561 | E90: 1417 | F90: 1222
A91: 23 | C91: 1719 | D91: 1561 | E91: 1417 | F91: 1222
A92: 24 | C92: 1719 | D92: 1561 | E92: 1417 | F92: 1222
A93: 25 | C93: 1932 | D93: 1755 | E93: 1594 | F93: 1375
A94: 26 | C94: 1932 | D94: 1755 | E94: 1594 | F94: 1375
A95: 27 | C95: 1932 | D95: 1755 | E95: 1594 | F95: 1375
A96: 28 | C96: 1932 | D96: 1755 | E96: 1594 | F96: 1375
A97: 29 | C97: 1932 | D97: 1755 | E97: 1594 | F97: 1375
A98: 30 | C98: 2166 | D98: 1967 | E98: 1789 | F98: 1543
A99: 31 | C99: 2166 | D99: 1967 | E99: 1789 | F99: 1543
A100: 32 | C100: 2166 | D100: 1967 | E100: 1789 | F100: 1543
A101: 33 | C101: 2166 | D101: 1967 | E101: 1789 | F101: 1543
A102: 34 | C102: 2166 | D102: 1967 | E102: 1789 | F102: 1543
A103: 35 | C103: 2473 | D103: 2245 | E103: 2041 | F103: 1760
A104: 36 | C104: 2473 | D104: 2245 | E104: 2041 | F104: 1760
A105: 37 | C105: 2473 | D105: 2245 | E105: 2041 | F105: 1760
A106: 38 | C106: 2473 | D106: 2245 | E106: 2041 | F106: 1760
A107: 39 | C107: 2473 | D107: 2245 | E107: 2041 | F107: 1760
A108: 40 | C108: 2867 | D108: 2603 | E108: 2365 | F108: 2039
A109: 41 | C109: 2867 | D109: 2603 | E109: 2365 | F109: 2039
A110: 42 | C110: 2867 | D110: 2603 | E110: 2365 | F110: 2039
A111: 43 | C111: 2867 | D111: 2603 | E111: 2365 | F111: 2039
A112: 44 | C112: 2867 | D112: 2603 | E112: 2365 | F112: 2039
A113: 45 | C113: 3426 | D113: 3111 | E113: 2827 | F113: 2437
A114: 46 | C114: 3426 | D114: 3111 | E114: 2827 | F114: 2437
A115: 47 | C115: 3426 | D115: 3111 | E115: 2827 | F115: 2437
A116: 48 | C116: 3426 | D116: 3111 | E116: 2827 | F116: 2437
A117: 49 | C117: 3426 | D117: 3111 | E117: 2827 | F117: 2437
A118: 50 | C118: 4089 | D118: 3713 | E118: 3373 | F118: 2908
A119: 51 | C119: 4089 | D119: 3713 | E119: 3373 | F119: 2908
A120: 52 | C120: 4089 | D120: 3713 | E120: 3373 | F120: 2908
A121: 53 | C121: 4089 | D121: 3713 | E121: 3373 | F121: 2908
A122: 54 | C122: 4089 | D122: 3713 | E122: 3373 | F122: 2908
A123: 55 | C123: 4865 | D123: 4418 | E123: 4015 | F123: 3461
A124: 56 | C124: 4865 | D124: 4418 | E124: 4015 | F124: 3461
A125: 57 | C125: 4865 | D125: 4418 | E125: 4015 | F125: 3461
A126: 58 | C126: 4865 | D126: 4418 | E126: 4015 | F126: 3461
A127: 59 | C127: 4865 | D127: 4418 | E127: 4015 | F127: 3461
A128: 60 | C128: 5397 | D128: 4902 | E128: 4453 | F128: 3839
A129: 61 | C129: 5622 | D129: 5104 | E129: 4637 | F129: 3998
A130: 62 | C130: 5891 | D130: 5350 | E130: 4862 | F130: 4191
A131: 63 | C131: 6185 | D131: 5617 | E131: 5103 | F131: 4399
A132: 64 | C132: 6538 | D132: 5938 | E132: 5394 | F132: 4650
A133: 65 | C133: 7027 | D133: 6380 | E133: 5796 | F133: 4997
A134: 66 | C134: 7590 | D134: 6892 | E134: 6262 | F134: 5397
A135: 67 | C135: 8193 | D135: 7440 | E135: 6760 | F135: 5826
A136: 68 | C136: 8881 | D136: 8062 | E136: 7326 | F136: 6314
A137: 69 | C137: 9690 | D137: 8799 | E137: 7995 | F137: 6891
A138: 70 | C138: 10694 | D138: 9710 | E138: 8823 | F138: 7604
A139: 71 | C139: 11871 | D139: 10778 | E139: 9793 | F139: 8441
A140: 72 | C140: 13131 | D140: 11923 | E140: 10833 | F140: 9336
A141: 73 | C141: 14568 | D141: 13228 | E141: 12018 | F141: 10359
A142: 74 | C142: 16235 | D142: 14741 | E142: 13393 | F142: 11545
A143: 75 | C143: 18190 | D143: 16516 | E143: 15007 | F143: 12935
A144: 76 | C144: 18190 | D144: 16516 | E144: 15007 | F144: 12935
A145: 77 | C145: 18190 | D145: 16516 | E145: 15007 | F145: 12935
A146: 78 | C146: 18190 | D146: 16516 | E146: 15007 | F146: 12935
A147: 79 | C147: 18190 | D147: 16516 | E147: 15007 | F147: 12935
A148: 80 | B148: o mas | C148: 18190 | D148: 16516 | E148: 15007 | F148: 12935
A149: 1 | B149: Hijo | C149: 609 | D149: 551 | E149: 501 | F149: 433
A150: 2 | B150: Hijos | C150: 937 | D150: 850 | E150: 773 | F150: 666
A151: 3 | B151: Hijos o más | C151: 1360 | D151: 1236 | E151: 1123 | F151: 968
A152: 1 | B152: Rider Comp. Maternidad | C152: 225 | D152: 225 | E152: 225 | F152: 0
A153: 1 | B153: Transplante de organos | C153: 300 | D153: 300 | E153: 300 | F153: 300
A155: BUPA ELITE
A156: TARIFAS ANUALES
A158: EDAD | D158: ET2 | E158: ET3 | F158: ET4 | G158: ET5 | H158: ET6
A159: 18 | D159: 7715 | E159: 4941 | F159: 3915 | G159: 3233 | H159: 2346
A160: 19 | D160: 7866 | E160: 5035 | F160: 3992 | G160: 3292 | H160: 2390
A161: 20 | D161: 8025 | E161: 5126 | F161: 4070 | G161: 3356 | H161: 2434
A162: 21 | D162: 8180 | E162: 5224 | F162: 4144 | G162: 3418 | H162: 2483
A163: 22 | D163: 8347 | E163: 5324 | F163: 4222 | G163: 3485 | H163: 2529
A164: 23 | D164: 8501 | E164: 5416 | F164: 4304 | G164: 3546 | H164: 2573
A165: 24 | D165: 8666 | E165: 5516 | F165: 4380 | G165: 3608 | H165: 2620
A166: 25 | D166: 8822 | E166: 5610 | F166: 4460 | G166: 3676 | H166: 2670
A167: 26 | D167: 8984 | E167: 5707 | F167: 4543 | G167: 3738 | H167: 2718
A168: 27 | D168: 9146 | E168: 5806 | F168: 4621 | G168: 3802 | H168: 2760
A169: 28 | D169: 9342 | E169: 5921 | F169: 4718 | G169: 3887 | H169: 2829
A170: 29 | D170: 9543 | E170: 6035 | F170: 4813 | G170: 3973 | H170: 2896
A171: 30 | D171: 9743 | E171: 6148 | F171: 4897 | G171: 4061 | H171: 2966
A172: 31 | D172: 9942 | E172: 6262 | F172: 4993 | G172: 4145 | H172: 3036
A173: 32 | D173: 10141 | E173: 6378 | F173: 5088 | G173: 4235 | H173: 3101
A174: 33 | D174: 10425 | E174: 6530 | F174: 5212 | G174: 4339 | H174: 3197
A175: 34 | D175: 10714 | E175: 6685 | F175: 5339 | G175: 4443 | H175: 3291
A176: 35 | D176: 10997 | E176: 6836 | F176: 5465 | G176: 4545 | H176: 3385
A177: 36 | D177: 11282 | E177: 6987 | F177: 5592 | G177: 4650 | H177: 3476
A178: 37 | D178: 11565 | E178: 7141 | F178: 5717 | G178: 4752 | H178: 3570
A179: 38 | D179: 11949 | E179: 7390 | F179: 5926 | G179: 4897 | H179: 3685
A180: 39 | D180: 12330 | E180: 7638 | F180: 6130 | G180: 5051 | H180: 3802
A181: 40 | D181: 12714 | E181: 7887 | F181: 6339 | G181: 5196 | H181: 3922
A182: 41 | D182: 13093 | E182: 8139 | F182: 6546 | G182: 5347 | H182: 4034
A183: 42 | D183: 13478 | E183: 8386 | F183: 6748 | G183: 5495 | H183: 4153
A184: 43 | D184: 13958 | E184: 8678 | F184: 6981 | G184: 5658 | H184: 4283
A185: 44 | D185: 14432 | E185: 8967 | F185: 7217 | G185: 5826 | H185: 4415
A186: 45 | D186: 14915 | E186: 9257 | F186: 7450 | G186: 5983 | H186: 4546
A187: 46 | D187: 15390 | E187: 9547 | F187: 7685 | G187: 6148 | H187: 4675
A188: 47 | D188: 15868 | E188: 9835 | F188: 7914 | G188: 6309 | H188: 4814
A189: 48 | D189: 16462 | E189: 10170 | F189: 8202 | G189: 6527 | H189: 4985
A190: 49 | D190: 17053 | E190: 10508 | F190: 8485 | G190: 6748 | H190: 5155
A191: 50 | D191: 17647 | E191: 10846 | F191: 8767 | G191: 6966 | H191: 5325
A192: 51 | D192: 18243 | E192: 11189 | F192: 9049 | G192: 7190 | H192: 5495
A193: 52 | D193: 18831 | E193: 11520 | F193: 9335 | G193: 7408 | H193: 5665
A194: 53 | D194: 19553 | E194: 11972 | F194: 9671 | G194: 7677 | H194: 5883
A195: 54 | D195: 20273 | E195: 12430 | F195: 10008 | G195: 7939 | H195: 6093
A196: 55 | D196: 20989 | E196: 12885 | F196: 10348 | G196: 8211 | H196: 6307
A197: 56 | D197: 21711 | E197: 13340 | F197: 10687 | G197: 8478 | H197: 6523
A198: 57 | D198: 22428 | E198: 13792 | F198: 11023 | G198: 8749 | H198: 6738
A199: 58 | D199: 23301 | E199: 14398 | F199: 11461 | G199: 9099 | H199: 7013
A200: 59 | D200: 24177 | E200: 15003 | F200: 11896 | G200: 9459 | H200: 7296
A201: 60 | D201: 25051 | E201: 15608 | F201: 12331 | G201: 9809 | H201: 7576
A202: 61 | D202: 26087 | E202: 16360 | F202: 12910 | G202: 10261 | H202: 7933
A203: 62 | D203: 27306 | E203: 17271 | F203: 13641 | G203: 10822 | H203: 8467
A204: 63 | D204: 28730 | E204: 18377 | F204: 14551 | G204: 11505 | H204: 9098
A205: 64 | D205: 30365 | E205: 19676 | F205: 15643 | G205: 12347 | H205: 9839
A206: 65 | D206: 32246 | E206: 21179 | F206: 16928 | G206: 13375 | H206: 10698
A207: 66 | D207: 34407 | E207: 22898 | F207: 18427 | G207: 14608 | H207: 11743
A208: 67 | D208: 36880 | E208: 24870 | F208: 20153 | G208: 16067 | H208: 12986
A209: 68 | D209: 39785 | E209: 27206 | F209: 22168 | G209: 17778 | H209: 14446
A210: 69 | D210: 43136 | E210: 29951 | F210: 24507 | G210: 19780 | H210: 16150
A211: 70 | D211: 46973 | E211: 33106 | F211: 27214 | G211: 22108 | H211: 18139
A212: 71 | D212: 51347 | E212: 36700 | F212: 30311 | G212: 24790 | H212: 20436
A213: 72 | D213: 56314 | E213: 40776 | F213: 33842 | G213: 27852 | H213: 23072
A214: 73 | D214: 61872 | E214: 45354 | F214: 37830 | G214: 31316 | H214: 26085
A215: 74 | D215: 68164 | E215: 50531 | F215: 42339 | G215: 35208 | H215: 29511
A216: 75 | D216: 75236 | E216: 56317 | F216: 47426 | G216: 39593 | H216: 33372
A217: 76 | D217: 83325 | E217: 63023 | F217: 53153 | G217: 44533 | H217: 37695
A218: 77 | D218: 93037 | E218: 70770 | F218: 59750 | G218: 50215 | H218: 42613
... 152 more rows
